Workbook

Sheet Cover
D3: GIZ (Living) Income Gap Estimator
D4: v1.0 (01.02.2022)
C7: About this tool | E7: This tool allows calculating gaps between actual income and any given income reference
E8: Considered are living income/wage benchmarks and various poverty lines
C10: Data requirements | E10: Guidance and/or calculation options are provided, depending on available data.
C12: How to use it | E12: 1 | F12: accept macros for the estimation tool to function
E13: 2 | F13: go to 'general data' form and define available information
E14: 3 | F14: fill data entry form with detailed/aggregated data
F15: data entry cells can be identified by their green filling
E16: 4 | F16: go to results and explore the estimated income gaps
C18: Notes | E18: - | F18: consider published reports/literature on (living) income gaps
E19: - | F19: depending on general data, different data entry forms will be opened
E20: - | F20: benchmarks/poverty lines used are derived from https://align-tool.com/
C22: ATTENTION | E22: - | F22: quality of the estimated income gaps significantly depends on data quality and reliability
C24: Imprint | E24: Copyright: | G24: Deutsche Gesellschaft für Internationale Zusammenarbeit (GIZ) GmbH
E25: Developers: | G25: Tim K. Loos, Nicola Nuecken
E26: Contact: | G26: ina@giz.de

Sheet General data
R2: Kommentare
C3: General information and specification of available data | R3: Ab hier wird später gelöscht
R4: "very hidden" werden in User Version
R5: VBA Passwort schützen
C6: Q1 | D6: Please provide information on the following key aspects | R6: Über VBA Worksheets ganz ausblenden "VeryHidden"
D7: A set of benchmarks will be generated based on your selection
D8: Source of benchmarks: https://align-tool.com/
C10: a) | D10: select country of interest | I10: Argentina
C11: b) | D11: select region or locality
C12: c) | D12: enter commodity | I12: Other
C13: d) | D13: select preferred currency | I13: Local Currency (LCU)
C17: Q2 | D17: You may define one additional benchmark or poverty line
D18: Note: The unit of reporting must be | F18: =IF(I13="Local Currency (LCU)","LCU",I13) -> LCU | G18: /HH /year | I18: (user defined benchmark)
C22: Q3 | D22: Please specify level of datail for your available data
D23: Note: The buttons will forward you to the corresponding data entry sheet!
D25: Information is available for:
C26: a) | D26: Net income of all income generating activities (main and all other)
C28: b) | D28: Net income of main product (e.g. crop) & income share of all income generating activities
C30: c) | D30: Net income of main product (e.g. crop) & income share of main product
C32: d) | D32: No information or only income from main product (e.g. crop)

Sheet Data entry (1)
C3: Data entry form
C4: Net income of all income generating activities (main and all other)
C7: Q1 | D7: Please provide information on the average (absolute) net income for all income generating activites
D8: Note: consider total annual net income of all household members
M12: ='General data'!$I$13 -> Local Currency (LCU) | N12: /HH /yr
J13: Other income sources
M17: ='General data'!$I$13 -> Local Currency (LCU) | N17: /HH /yr
J18: (net) Off-farm income
C20: Actual income | F20: =IFERROR(F24+F27+F30,"data missing") -> 0
F22: ='General data'!$I$13 -> Local Currency (LCU) | G22: /HH /yr | M22: ='General data'!$I$13 -> Local Currency (LCU) | N22: /HH /yr
J23: Primary cash crop income
C24: Other income | F24: =IFERROR(L12+1-1,"data missing") -> 0
C27: Net off-farm income | F27: =IFERROR(L17+1-1,"data missing") -> 0 | M27: ='General data'!$I$13 -> Local Currency (LCU) | N27: /HH /yr
J28: Secondary cash crop income
F30: =IFERROR(L22+L27+L32, "data missing") -> 0
M32: ='General data'!$I$13 -> Local Currency (LCU) | N32: /HH /yr
C33: Net farm income | J33: Produce consumed at home

Sheet Data entry (2)
P2: delete from P to end
C3: Data entry form
C4: Net income of main product (e.g. crop) & of other income generating activities
C7: Q1 | D7: Please provide information on the average (absolute) net income of the main cash product (e.g. crop)
D8: Note: consider total annual net income
F12: 1700 | G12: ='General data'!$I$13 -> Local Currency (LCU) | H12: /HH /yr
D13: Primary cash crop income
C17: Q2 | D17: Please provide the contribution of all income generating activities to total actual income
D18: Note: the income distribution must add up to 100%; if there is no income from the source enter zero (0)
M22: %
J23: Other income sources
M27: %
J28: Off-farm income
M32: %
J33: Primary cash crop income
M37: %
J38: Secondary cash crop income
M42: %
J43: Produce consumed at home
C46: Data entry check | E46: =IF(L22+L27+L32+L37+L42=100,"income distribution correct","please adjust income distribution data") -> please adjust income distribution data | L46: =L42+L37+L32+L27+L22 -> 0 | M46: %

Sheet Data entry (3)
C3: Data entry form
C4: Net income of main product (e.g. crop) & income share of main product
C7: Q1 | D7: Please provide information on the average (absolute) net income of the main cash product (e.g. crop)
D8: Note: consider total annual net income generated through main product
G12: ='General data'!$I$13 -> Local Currency (LCU) | H12: /HH /yr
D13: Primary cash crop income
C17: Q2 | D17: Please specify the contribution of your main cash product (e.g. crop) to total actual income
D18: Note: use the slide control to specify income share / for decimals enter share of main product directly
G22: % | I22: % | J22: =100-F22 -> 100
D23: Primary cash crop income | M23: Other income sources

Sheet Results (1)
C3: Results | E3: Net income of all income generating activities (main and all other)
R7: Benchmark Calculations
K8: Av. Total Actual Income | M8: =hide_backend!F17 -> 0 | N8: USD | O8: /HH /yr
K10: Living Income Benchmark | M10: =hide_backend!C6 ->  | N10: ='General data'!$I$13 -> Local Currency (LCU) | O10: /HH /yr | S10: LI per person per month * household size * 12
K11: Av. Living Income Gap (absolute) | M11: =hide_backend!F6 ->  | N11: ='General data'!$I$13 -> Local Currency (LCU) | O11: /HH /yr | S11: Benchmark - Actual income
K12: Av. Living Income Gap (percentage) | M12: =hide_backend!G6 ->  | N12: % | S12: LI Gap/Benchmark * 100
K14: Living Wage Benchmark | M14: =hide_backend!C7 ->  | N14: ='General data'!$I$13 -> Local Currency (LCU) | O14: /HH /yr | S14: LW per wf per month * household size * 12
K15: Av. Living Wage Gap (absolute) | M15: =hide_backend!F7 ->  | N15: ='Results (1)'!L2 -> 0 | O15: /HH /yr | S15: Benchmark - Actual income
K16: Av. Living Wage Gap (percentage) | M16: =hide_backend!G7 ->  | N16: % | S16: LI Gap/Benchmark * 100
K18: National Minimum Wage | M18: =hide_backend!$C$8 ->  | N18: ='General data'!$I$13 -> Local Currency (LCU) | O18: /HH /yr | S18: MW per wf per month * household size * 12
K19: Av. National MW Gap (absolute) | M19: =hide_backend!F8 ->  | N19: ='General data'!$I$13 -> Local Currency (LCU) | O19: /HH /yr | S19: Benchmark - Actual income
K20: Av. National MW Gap (percentage) | M20: =hide_backend!G8 ->  | N20: % | S20: LI Gap/Benchmark * 100
K22: National Poverty Line | M22: =hide_backend!C9 ->  | N22: ='General data'!$I$13 -> Local Currency (LCU) | O22: /HH /yr | S22: NL PL per wf per month * household size * 12
K23: Av. National PL Gap (absolute) | M23: =hide_backend!F9 ->  | N23: ='General data'!$I$13 -> Local Currency (LCU) | O23: /HH /yr | S23: Benchmark - Actual income
K24: Av. National PL Gap (absolute) | M24: =hide_backend!G9 ->  | N24: % | S24: LI Gap/Benchmark * 100
K26: World Bank Poverty Line | M26: =hide_backend!C10 ->  | N26: ='General data'!$I$13 -> Local Currency (LCU) | O26: /HH /yr | S26: PL per wf per month * household size * 12
K27: Av. World Bank PL Gap (absolute) | M27: =hide_backend!F10 ->  | N27: ='General data'!$I$13 -> Local Currency (LCU) | O27: /HH /yr | S27: Benchmark - Actual income
K28: Av. World Bank PL Gap (percentage) | M28: =hide_backend!G10 ->  | N28: % | S28: LI Gap/Benchmark * 100
K30: User Defined Benchmark | M30: =hide_backend!C11 -> 0 | N30: ='General data'!$I$13 -> Local Currency (LCU) | O30: /HH /yr | S30: defined in USD/HH/yr, no calcualation needed
K31: Av. BM Gap (absolute) | M31: =hide_backend!F11 -> No benchmark | N31: ='General data'!$I$13 -> Local Currency (LCU) | O31: /HH /yr
K32: Av. BM Gap (percentage) | M32: =hide_backend!G11 -> n.a. | N32: %
C35: ATTENTION: The results are based on average income levels. Therefore, calculated gaps are also averages. Actual gaps might be larger for some households. Values are based on your entered data. Results should be considered estimates! It is recommended to validate and align income gap estimates with all relevant stakeholders! | R35: Please note: For the benchmark values used, see the ALIGN Living Income and Living Wage dataset, which proveds the per person and per household benchmark values.

Sheet Results (2)
C3: Results | E3: Net income of main product (e.g. crop) & of other income generating activities
R7: Benchmark Calculations
K8: Av. Total Actual Income | M8: =hide_backend!I28 ->  | N8: USD | O8: /HH /yr
K10: Living Income Benchmark | M10: =hide_backend!C6 ->  | N10: ='General data'!$I$13 -> Local Currency (LCU) | O10: /HH /yr | S10: LI per person per month * household size * 12
K11: Av. Living Income Gap (absolute) | M11: =hide_backend!I6 ->  | N11: ='General data'!$I$13 -> Local Currency (LCU) | O11: /HH /yr | S11: Benchmark - Actual income
K12: Av. Living Income Gap (percentage) | M12: =hide_backend!J6 ->  | N12: % | S12: LI Gap/Benchmark * 100
K14: Living Wage Benchmark | M14: =hide_backend!C7 ->  | N14: ='General data'!$I$13 -> Local Currency (LCU) | O14: /HH /yr | S14: LW per wf per month * household size * 12
K15: Av. Living Wage Gap (absolute) | M15: =hide_backend!I7 ->  | N15: ='General data'!$I$13 -> Local Currency (LCU) | O15: /HH /yr | S15: Benchmark - Actual income
K16: Av. Living Wage Gap (percentage) | M16: =hide_backend!J7 ->  | N16: % | S16: LI Gap/Benchmark * 100
K18: National Minimum Wage | M18: =hide_backend!C8 ->  | N18: ='General data'!$I$13 -> Local Currency (LCU) | O18: /HH /yr | S18: MW per wf per month * household size * 12
K19: Av. National MW Gap (absolute) | M19: =hide_backend!I8 ->  | N19: ='General data'!$I$13 -> Local Currency (LCU) | O19: /HH /yr | S19: Benchmark - Actual income
K20: Av. National MW Gap (percentage) | M20: =hide_backend!J8 ->  | N20: % | S20: LI Gap/Benchmark * 100
K22: National Poverty Line | M22: =hide_backend!C9 ->  | N22: ='General data'!$I$13 -> Local Currency (LCU) | O22: /HH /yr | S22: NL PL per wf per month * household size * 12
K23: Av. National PL Gap (absolute) | M23: =hide_backend!I9 ->  | N23: ='General data'!$I$13 -> Local Currency (LCU) | O23: /HH /yr | S23: Benchmark - Actual income
K24: Av. National PL Gap (absolute) | M24: =hide_backend!J9 ->  | N24: % | S24: LI Gap/Benchmark * 100
K27: World Bank Poverty Line | M27: =hide_backend!C10 ->  | N27: ='General data'!$I$13 -> Local Currency (LCU) | O27: /HH /yr | S27: PL per wf per month * household size * 12
K28: Av. World Bank PL Gap (absolute) | M28: =hide_backend!I10 ->  | N28: ='General data'!$I$13 -> Local Currency (LCU) | O28: /HH /yr | S28: Benchmark - Actual income
K29: Av. World Bank PL Gap (percentage) | M29: =hide_backend!J10 ->  | N29: % | S29: LI Gap/Benchmark * 100
K31: User Defined Benchmark | M31: =hide_backend!C11 -> 0 | N31: ='General data'!$I$13 -> Local Currency (LCU) | O31: /HH /yr | S31: defined in USD/HH/yr, no calcualation needed
K32: Av. BM Gap (absolute) | M32: =hide_backend!I11 -> No benchmark | N32: ='General data'!$I$13 -> Local Currency (LCU) | O32: /HH /yr
K33: Av. BM Gap (percentage) | M33: =hide_backend!J11 -> n.a. | N33: %
D36: ATTENTION: The results are based on average income levels. Therefore, calculated gaps are also averages. Actual gaps might be larger for some households. Values are based on your entered data. Results should be considered estimates! It is recommended to validate and align income gap estimates with all relevant stakeholders! | R36: Please note: For the benchmark values used, see the ALIGN Living Income and Living Wage Dataset, which proveds the per person and per household benchmark values.

Sheet Results (3)
C3: Results | E3: Net income of main product (e.g. crop) & income share of main product
S7: Benchmark Calculations
K8: Av. Total actual income | M8: =hide_backend!F39 ->  | N8: USD | O8: /HH /yr
K10: Living Income Benchmark | M10: =hide_backend!C6 ->  | N10: ='General data'!$I$13 -> Local Currency (LCU) | O10: /HH /yr | S10: LI per person per month * household size * 12
K11: Av. Living Income Gap (absolute) | M11: =hide_backend!L6 ->  | N11: ='General data'!$I$13 -> Local Currency (LCU) | O11: /HH /yr | S11: Benchmark - Actual income
K12: Av. Living Income Gap (percentage) | M12: =hide_backend!M6 ->  | N12: % | S12: LI Gap/Benchmark * 100
K14: Living Wage Benchmark | M14: =hide_backend!C7 ->  | N14: ='General data'!$I$13 -> Local Currency (LCU) | O14: /HH /yr | S14: LW per wf per month * household size * 12
K15: Av. Living Wage Gap (absolute) | M15: =hide_backend!L7 ->  | N15: ='General data'!$I$13 -> Local Currency (LCU) | O15: /HH /yr | S15: Benchmark - Actual income
K16: Av. Living Wage Gap (percentage) | M16: =hide_backend!M7 ->  | N16: % | S16: LI Gap/Benchmark * 100
K18: National Minimum Wage | M18: =hide_backend!C8 ->  | N18: ='General data'!$I$13 -> Local Currency (LCU) | O18: /HH /yr | S18: MW per wf per month * household size * 12
K19: Av. National MW Gap (absolute) | M19: =hide_backend!L8 ->  | N19: ='General data'!$I$13 -> Local Currency (LCU) | O19: /HH /yr | S19: Benchmark - Actual income
K20: Av. National MW Gap (percentage) | M20: =hide_backend!M8 ->  | N20: % | S20: LI Gap/Benchmark * 100
K22: National Poverty Line | M22: =hide_backend!C9 ->  | N22: ='General data'!$I$13 -> Local Currency (LCU) | O22: /HH /yr | S22: NL PL per wf per month * household size * 12
K23: Av. National PL Gap (absolute) | M23: =hide_backend!L9 ->  | N23: ='General data'!$I$13 -> Local Currency (LCU) | O23: /HH /yr | S23: Benchmark - Actual income
K24: Av. National PL Gap (absolute) | M24: =hide_backend!M9 ->  | N24: % | S24: LI Gap/Benchmark * 100
K26: World Bank Poverty Line | M26: =hide_backend!C10 ->  | N26: ='General data'!$I$13 -> Local Currency (LCU) | O26: /HH /yr | S26: PL per wf per month * household size * 12
K27: Av. World Bank PL Gap (absolute) | M27: =hide_backend!L10 ->  | N27: ='General data'!$I$13 -> Local Currency (LCU) | O27: /HH /yr | S27: Benchmark - Actual income
K28: Av. World Bank PL Gap (percentage) | M28: =hide_backend!M10 ->  | N28: % | S28: LI Gap/Benchmark * 100
K30: User Defined Benchmark | M30: =hide_backend!C11 -> 0 | N30: ='General data'!$I$13 -> Local Currency (LCU) | O30: /HH /yr | S30: defined in USD/HH/yr, no calcualation needed
K31: Av. BM Gap (absolute) | M31: =hide_backend!L11 -> No benchmark | N31: ='General data'!$I$13 -> Local Currency (LCU) | O31: /HH /yr
K32: Av. BM Gap (percentage) | M32: =hide_backend!M11 -> n.a. | N32: %
D35: ATTENTION: The results are based on average income levels. Therefore, calculated gaps are also averages. Actual gaps might be larger for some households.Values are based on your entered data. Results should be considered estimates! It is recommended to validate and align income gap estimates with all relevant stakeholders! | R35: Please note: For the benchmark values used, see the ALIGN Living Income and Living Wage Dataset, , which proveds the per person and per household benchmark values.

Sheet Further resources
C3: Further resources that you may find useful
C6: Websites
C7: For link, click on image
C15: Publications
C17: Anker, R. and Anker, M. (2017): Living Wages around the world. Edward Elgar Publishing/Elgaronline.
C18: https://doi.org/10.4337/9781786431462
C20: Fairtrade International (2019): Fairtrade Living Income Reference Price model.
C21: Available at | D21: https://www.fairtrade.net/issue/living-income#lirp
C23: Fountain, A.C. and Hütz-Adams, F. (2019): Necessary Farm Gate Prices for a Living Income. Consultation paper. Cocoa Barometer Consortium.
C25: Available at | D25: https://www.voicenetwork.eu
C27: Krain, E.; Gyimah, O.J.; Pumpuni, I.; Kwapong-Akuffo, N. and M. Kuntze-Fechner (2021): Analysis and Report of a Baseline Study for a Living Income (and Other Benchmarks) in Cashew and Cocoa Growing Regions of Ghana. GIZ Competitive Cashew Initiative (ComCashew) and the Sustainable Agricultural Supply Chain Project (INA), Bremen, DE and Accra, GH.
C31: Krain, E. and Steffens, L. (2019): Living Income Reference Pricing Tool, a Handbook to Determine Reference Prices for Agricultural Commodities Based on Benchmarks (Draft), Deutsche Gesellschaft für Internationale Zusammenarbeit (GIZ), Bonn
C34: Loos, T.K., E. Krain, C. Veldhuyzen van Zanten and A. Petri (2021): How to calculate (living income) reference prices for agriculturalcommodities. Practitioner guide. Living Income Community of Practice. (under review)
C36: Available at | D36: LINK, tba once available
C38: Tyszler, M., De Los Rios, E., Serflippi, G., Audet-Belanger, A. L. (2020): Guidance manual on calculating and visualizing the income gap to a Living Income Benchmark. The Commitee on Sustainability Assessment (COSA) and KIT Royal Tropical Institute.
C40: Available at | D40: https://www.living-income.com/licopresources
C42: Tyszler, M. and De Los Ríos, C. (2020): Guidance manual on calculating and visualizing the income gap to a Living Income Benchmark. Living Income Community of Practice.
C44: Available at | D44: LICOP resources | livingincome (living-income.com)

Sheet hide_backend
B2: Benchmark Look-up drinnen
B3: Mal 12 (um Jahr rauszukriegen)
B4: Summary table | F4: S1_all info available | I4: S2_main & distribution | L4: S3_main and main share
B5: Benchmarks | C5: Value | D5: Unit currency | E5: Unit per X | F5: Income gap | G5: share | H5: Gap? | I5: Income gap | J5: share | K5: Gap? | L5: Income gap | N5: Gap?
B6: Living Income | C6: =INDEX('hide_LI Database'!BL7:BN62,MATCH('General data'!I10:J10&'General data'!I11:J11,'hide_LI Database'!A7:A62&'hide_LI Database'!B7:B62,0),MATCH('General data'!F18,'hide_LI Database'!BL6:BN6,0))*12 ->  | D6: ='General data'!$I$13 -> Local Currency (LCU) | E6: /HH /yr | F6: =IF(C6=0,"No benchmark",C6-$F$17) ->  | G6: =IF(F6="No benchmark","n.a.",F6/C6*100) ->  | H6: =IF(F6<0,"no income gap",F6) ->  | I6: =IF(C6=0,"No benchmark",C6-$I$28) ->  | J6: =IF(I6="No benchmark","n.a.",I6/C6*100) ->  | K6: =IF(I6<0,"no income gap",I6) ->  | L6: =IF(C6=0,"No benchmark",C6-$F$39) ->  | M6: =IF(L6="No benchmark","n.a.",L6/C6*100) ->  | N6: =IF(L6<0,"no income gap",L6) -> 
B7: Living Wage | C7: =INDEX('hide_LI Database'!BB7:BD62,MATCH('General data'!I10:J10&'General data'!I11:J11,'hide_LI Database'!A7:A62&'hide_LI Database'!B7:B62,0),MATCH('General data'!F18,'hide_LI Database'!BB6:BD6,0))*12 ->  | D7: ='General data'!$I$13 -> Local Currency (LCU) | E7: /HH /yr | H7: =IF(F7<0,"no income gap",F7) ->  | K7: =IF(I7<0,"no income gap",I7) ->  | N7: =IF(L7<0,"no income gap",L7) -> 
B8: National minimum wage | C8: =INDEX('hide_LI Database'!AR7:AT62,MATCH('General data'!I10:J10&'General data'!I11:J11,'hide_LI Database'!A7:A62&'hide_LI Database'!B7:B62,0),MATCH('General data'!F18,'hide_LI Database'!AR6:AT6,0))*12 ->  | D8: ='General data'!$I$13 -> Local Currency (LCU) | E8: /HH /yr
B9: National poverty line | C9: =INDEX('hide_LI Database'!AH7:AJ62,MATCH('General data'!I10:J10&'General data'!I11:J11,'hide_LI Database'!A7:A62&'hide_LI Database'!B7:B62,0),MATCH('General data'!F18,'hide_LI Database'!AH6:AJ6,0))*12 ->  | D9: ='General data'!$I$13 -> Local Currency (LCU) | E9: /HH /yr
B10: World Bank poverty line | C10: =INDEX('hide_LI Database'!S7:U62,MATCH('General data'!I10:J10&'General data'!I11:J11,'hide_LI Database'!A7:A62&'hide_LI Database'!B7:B62,0),MATCH('General data'!F18,'hide_LI Database'!S6:U6,0))*12 ->  | D10: ='General data'!$I$13 -> Local Currency (LCU) | E10: /HH /yr
B11: User defined benchmark | C11: ='General data'!$I$17 -> 0 | D11: ='General data'!$I$13 -> Local Currency (LCU) | E11: /HH /yr | F11: No benchmark | G11: n.a. | H11: No benchmark | I11: =IF(C11=0,"No benchmark",C11-$I$28) -> No benchmark | J11: n.a. | K11: No benchmark | L11: No benchmark | M11: n.a. | N11: No benchmark
B15: Graph Scenario 1 - income of all income sources
B16: Income source | C16: Income | F16: Total actual income | G16: gap | H16: Übertrag | I16: Check
B17: Other income | C17: ='Data entry (1)'!$L$12 -> 0 | D17: Other income | E17: =$C$17 -> 0 | F17: =E17+E18+E19 -> 0 | G17: =MAX(C6:C11)-F17 ->  | H17: ='Data entry (1)'!F20 -> 0 | I17: =F17-H17 -> 0
B18: Off-farm income | C18: ='Data entry (1)'!$L$17 -> 0 | D18: Off-farm income | E18: =$C$18 -> 0
B19: Primary crop income | C19: ='Data entry (1)'!$L$22 -> 0 | D19: Farm income | E19: =$C$19+$C$20+$C$21 -> 0
B20: Secondary crop income | C20: ='Data entry (1)'!$L$27 -> 0
B21: Produce consumed at home | C21: ='Data entry (1)'!$L$32 -> 0
B26: Graph Scenario 2 - income main & full income distribution
B27: Income source | C27: Income | D27: Share | E27: Factor | I27: Total actual income | J27: gap
B28: Other income | C28: =E28*$C$30 ->  | D28: ='Data entry (2)'!L22/100 -> 0 | E28: =D28/$D$30 ->  | F28: Other income | H28: =C28 ->  | I28: =H28+H29+H30 ->  | J28: =MAX(C6:C11)-I28 -> 
B29: Off-farm income | C29: =E29*$C$30 ->  | D29: ='Data entry (2)'!L27/100 -> 0 | E29: =D29/$D$30 ->  | F29: Off-farm income | H29: =C29 -> 
B30: Primary cash crop income | C30: ='Data entry (2)'!F12 -> 1700 | D30: ='Data entry (2)'!L32/100 -> 0 | F30: Farm income | H30: =C30+C31+C32 -> 
B31: Secondary crop income | C31: =E31*$C$30 ->  | D31: ='Data entry (2)'!L37/100 -> 0
B32: Produce consumed at home | C32: =E32*$C$30 ->  | D32: ='Data entry (2)'!L42/100 -> 0
B37: Graph Scenario 3 - income main & share main
B38: Income source | C38: Income | D38: Share | E38: Factor | F38: Total actual income | G38: gap
B39: Other income | C39: =C40*E39 ->  | D39: ='Data entry (3)'!J22/100 -> 1 | E39: =D39/D40 ->  | F39: =C39+C40 ->  | G39: =MAX(C6:C11)-F39 -> 
B40: Primary cash crop income | C40: ='Data entry (3)'!F12 -> 0 | D40: ='Data entry (3)'!F22/100 -> 0 | E40: =D40/D40 -> 

Sheet hide_Suchtabellen
A2: Countries | C2: Region | E2: Commodity | G2: Currency | J2: Argentina | K2: Bangladesh | L2: Brazil | M2: Burkina Faso | N2: Cameroon | O2: Chile | P2: China | Q2: Colombia | R2: Costa Rica | S2: Cote d'Ivoire | T2: Dominican Republic | U2: Ecuador | V2: Egypt, Arab Rep. | W2: El Salvador | X2: Ethiopia | Y2: Ghana | Z2: Guatemala | AA2: Honduras | AB2: India | AC2: Kenya | AD2: Madagascar | AE2: Malawi | AF2: Mexico | AG2: Morocco | AH2: Mozambique | AI2: Nicaragua | AJ2: Nigeria | AK2: Pakistan | AL2: Panama | AM2: Papua New Guinea | AN2: Peru | AO2: Rwanda | AP2: South Africa | AQ2: Sri Lanka | AR2: Tanzania | AS2: Tunisia | AT2: Turkey | AU2: Uganda | AV2: Vietnam
A3: Argentina | C3: Urban | E3: Banana | G3: EUR | J3: Urban | K3: Urban Satellite Cities | L3: Urban | M3: Rural | N3: Rural | O3: Non-Metropolitan Urban | P3: Urban Zhengzhou | Q3: Urban-Rural | R3: Rural | S3: Rural | T3: Rural | U3: Rural | V3: Rural | W3: Rural | X3: Non-Metropolitan Urban | Y3: Peri-Urban | Z3: Rural | AA3: Rural | AB3: Urban | AC3: Rural | AD3: Rural | AE3: Rural | AF3: Non-metropolitan Urban & Rural | AG3: Rural | AH3: Rural | AI3: Urban | AJ3: Rural | AK3: Rural | AL3: Rural | AM3: Rural | AN3: Rural | AO3: Rural | AP3: Rural | AQ3: Rural | AR3: Rural | AS3: Rural | AT3: Rural | AU3: Rural | AV3: Rural
A4: Bangladesh | C4: Rural | E4: Cocao | G4: Local Currency (LCU) | J4: Rural | K4: Urban Dhaka City | L4: Non-metropolitan | P4: Urban Chengdu | S4: Rural Cocoa growing areas | Y4: Rural | AB4: Rural Bhadohi, Uttar Pradesh | AC4: Non-metropolitan Urban | AI4: Rural-Urban | AK4: Urban | AR4: Urban | AV4: Urban
A5: Brazil | C5: Non-metropolitan | E5: Coffee | G5: USD | P5: Urban Hangzhou | AB5: Rural Rural Nilgiris, Tamil Nadu
A6: Burkina Faso | C6: Non-Metropolitan Urban | E6: Orange | P6: Urban Shanghai
A7: Cameroon | C7: Urban-Rural | E7: Palmoil | P7: Urban Shenzhen
A8: Chile | C8: Peri-Urban | E8: Soy | P8: Urban Suzhou
A9: China | C9: Non-metropolitan Urban & Rural | E9: Vanila
A10: Colombia | C10: Rural-Urban | E10: Other
A11: Costa Rica
A12: Cote d'Ivoire
A13: Dominican Republic | C13: Production Scenario | G13: Hide Sheets list
A14: Ecuador | C14: Business as ususal | G14: Data entry (1)
A15: Egypt, Arab Rep. | C15: Good Agricultural Practices | G15: Data entry (2)
A16: El Salvador | C16: Model data | G16: Data entry (3)
A17: Ethiopia | C17: Other data | G17: hide_backend
A18: Ghana | G18: hide_LI Database
A19: Guatemala | G19: hide_Suchtabellen
A20: Honduras | G20: Results (1)
A21: India | G21: Results (2)
A22: Kenya | G22: Results (3)
A23: Madagascar
A24: Malawi
A25: Mexico
A26: Morocco
A27: Mozambique
A28: Nicaragua
A29: Nigeria
A30: Pakistan
A31: Panama
A32: Papua New Guinea
A33: Peru
A34: Rwanda
A35: South Africa
A36: Sri Lanka
A37: Tanzania
A38: Tunisia
A39: Turkey
A40: Uganda
A41: Vietnam

Sheet hide_LI Database
A1: Living Wage & Living Income Dataset | D1: ALIGN (www.align-tool.com) provides an overview of the available living wage and income studies based on the internationally acknowledged Anker methodology.
A2: Data valid on April 2021
A3: Geography Source: GLWC & LICoP | D3: Family composition Source: GLWC & LICoP | H3: International Poverty Lines Source: World Bank | W3: National Poverty Lines | AL3: Minimum Wages Source: ILO & WageIndicator Foundation | AV3: Living Wages Source: Global Living Wage Coalition | BF3: Living Income Source: GLWC & LICoP | BP3: Currency
A4: LW / LI are based on the cost of living in a specific geography, at country or sub-country level, and differ per rural, urban or peri-urban areas | D4: The family composition parameters, such as family size, adults per family and labour force are taken from the LW/LI studies. | H4: The International Poverty Lines are retrieved from the World Bank and differ per country according to the World Bank classification by income group. They are based on a division into 4 income groupings: low-income Int. Poverty Line, set at $1.90/day; lower-middle income Int. Poverty Line, set at $3.20/day; upper-middle income Int. Poverty Line, set at $5.50/day; and high-income Int. Poverty Line, set at $21.70/day. Information on family size and labour force from the LW/LI studies was taken into account. | W4: The National Poverty Lines are retrieved from official governmental sources that differ per country. The information on family size and labour force from the LW/LI studies was taken into account. | AL4: The data refer to national minimum wage rates where they exist. For countries with multiple minimum wage rates, the selected rate has been specified. Data reported as hourly, weekly, and yearly are converted to monthly, using a 45-hour standard work week, with a maximum of 8hours per day. The information on family size and labour force from the LW/LI studies was taken into account. | AV4: The information is from the Global Living Wage Coalition, from living wage studies that use the full Anker Methodology and Anker Reference Values. The Global Living Wage Coalition's data on family size and labour force were taken into account. | BF4: Information from LW/LI studies that use the full Anker Methodology and Anker Reference Values. In the lack of a living income study, cost of living data was taken from living wage studies to provide living income estimates. The information on family size and labour force from the LW/LI studies was taken into account. | BP4: Currency conversion rates to LCU, EUR & USD are from InforEuro, January 2021. International dollars were calculated using the World Bank PPP conversion factor for 2019.
A5: Country | B5: Locality | C5: Region/area | D5: Study type | E5: Family size | F5: Adults per family | G5: Labour force | H5: Year | I5: Poverty headcount ratio | J5: Int. poverty line Per person/day | K5: Int. poverty line Per person/month | O5: Int. poverty line Per workforce/month | S5: Int. poverty line Per family/month | Y5: National poverty line Per person/day | Z5: National poverty line Per person/month | AD5: National poverty line Per workforce/month | AH5: National poverty line Per family/month | AN5: Minimum Wage Per workforce/month | AR5: Minimum Wage Per family/month | AX5: Living Wage Per workforce/month | BB5: Living Wage Per family/month | BH5: Living Income Per person/month | BL5: Living Income Per family/month | BP5: Local currency unit (LCU) | BQ5: Currency code | BR5: 2019 PPP Conversion factor
E6: #people | F6: #adults | G6: Workforce/ family | I6: % of population | J6: USD | K6: USD | L6: EUR | M6: LCU | N6: 2019 PPP$ | O6: USD | P6: EUR | Q6: LCU | R6: 2019 PPP$ | S6: USD | T6: EUR | U6: LCU | V6: 2019 PPP$ | W6: Year | X6: Source | Y6: LCU | Z6: LCU | AA6: USD | AB6: EUR | AC6: 2019 PPP$ | AD6: LCU | AE6: USD | AF6: EUR | AG6: 2019 PPP$ | AH6: LCU | AI6: USD | AJ6: EUR | AK6: 2019 PPP$ | AL6: Year, type | AM6: Source | AN6: LCU | AO6: USD | AP6: EUR | AQ6: 2019 PPP$ | AR6: LCU | AS6: USD | AT6: EUR | AU6: 2019 PPP$ | AV6: Year | AW6: Source | AX6: LCU | AY6: USD | AZ6: EUR | BA6: 2019 PPP$ | BB6: LCU | BC6: USD | BD6: EUR | BE6: 2019 PPP$ | BF6: Year | BG6: Source | BH6: LCU | BI6: USD | BJ6: EUR | BK6: 2019 PPP$ | BL6: LCU | BM6: USD | BN6: EUR | BO6: 2019 PPP$
A7: Argentina | B7: Urban | D7: Living Wage Reference Value | E7: 4 | F7: 2 | G7: 1.66 | H7: 2019 | I7: 14 | J7: 5.5 | K7: =J7*30.4 -> 167.2 | L7: 136 | M7: 13923 | O7: =S7/G7 -> 402.8915663 | P7: =T7/G7 -> 327.7108434 | Q7: =U7/G7 -> 33549.39759 | S7: =K7*E7 -> 668.8 | T7: =L7*E7 -> 544 | U7: =M7*E7 -> 55692 | AL7: 2021 | AM7: Wage Indicator | AN7: 21600 | AO7: 259 | AP7: 211 | AR7: =AN7*G7 -> 35856 | AS7: 430 | AT7: 350 | AV7: 2020 | AW7: GLWC | AX7: 38741 | AY7: 465 | AZ7: 378 | BB7: =AX7*G7 -> 64310.06 | BC7: =AY7*G7 -> 771.9 | BD7: =AZ7*G7 -> 627.48 | BF7: 2020 | BG7: Calculated from GLWC | BH7: =(36376*G7)/E7 -> 15096.04 | BI7: 181 | BJ7: 147 | BL7: =BH7*E7 -> 60384.16 | BM7: =BI7*E7 -> 724 | BN7: =BJ7*E7 -> 588 | BP7: Argentine peso | BQ7: ARS
A8: Argentina | B8: Rural | D8: Living Income Reference Value | E8: 4 | F8: 2 | H8: 2019 | I8: 14 | J8: 5.5 | K8: 167.2 | L8: 136 | M8: 13923 | S8: =K8*E8 -> 668.8 | T8: 544 | U8: 55692 | AL8: 2021 | AM8: Wage Indicator | AN8: 21600 | AO8: 259 | AP8: 211 | BF8: 2020 | BG8: GLWC | BH8: =BL8/E8 -> 12505.75 | BI8: =BM8/E8 -> 150 | BJ8: =BN8/E8 -> 122.25 | BL8: 50023 | BM8: 600 | BN8: 489 | BP8: Argentine peso | BQ8: ARS
A9: Bangladesh | B9: Urban | C9: Satellite Cities and Districts Surrounding Dhaka | D9: Living Wage Benchmark | E9: 4 | F9: 2 | G9: 1.58 | H9: 2016 | I9: 52 | J9: 3.2 | K9: 97.28 | L9: 79 | M9: 8226 | N9: =M9/BR9 -> 260.8415785 | O9: =S9/G9 -> 246.278481 | P9: =T9/G9 -> 200 | Q9: =U9/G9 -> 20825.31646 | R9: =Q9/BR9 -> 660.3584266 | S9: 389.12 | T9: 316 | U9: 32904 | V9: =U9/BR9 -> 1043.366314 | W9: 2016, Low poverty line | X9: Bangladesh Bureau of Statistics (BBS) | Y9: =Z9/30.4 -> 61.25 | Z9: 1862 | AA9: =AI9/E9 -> 22 | AB9: =AJ9/E9 -> 18 | AC9: =Z9/BR9 -> 59.04291504 | AD9: =(Y9*30.4*E9)/G9 -> 4713.924051 | AE9: 56 | AF9: 46 | AG9: =AD9/BR9 -> 149.4757343 | AH9: =Y9*30.4*E9 -> 7448 | AI9: 88 | AJ9: 72 | AK9: =AH9/BR9 -> 236.1716602 | AL9: 2013 | AM9: Wage Indicator | AN9: 1500 | AO9: 18 | AP9: 14 | AQ9: =AN9/BR9 -> 47.56410986 | AR9: =AN9*G9 -> 2370 | AS9: =AO9*G9 -> 28.44 | AT9: =AP9*G9 -> 22.12 | AU9: =AR9/BR9 -> 75.15129359 | AV9: 2016 | AW9: GLWC | AX9: 13630 | AY9: 161 | AZ9: 131 | BA9: =AX9/BR9 -> 432.1992116 | BB9: =AX9*G9 -> 21535.4 | BC9: =AY9*G9 -> 254.38 | BD9: =AZ9*G9 -> 206.98 | BE9: =BB9/BR9 -> 682.8747544 | BF9: 2016 | BG9: Calculated from GLWC | BH9: 5135.5 | BI9: 60.5 | BJ9: 49.25 | BK9: =BH9/BR9 -> 162.8436575 | BL9: 20542 | BM9: 242 | BN9: 197 | BO9: =BL9/BR9 -> 651.3746299 | BP9: Bangladeshi taka | BQ9: BDT | BR9: 31.5363833
A10: Bangladesh | B10: Urban | C10: Dhaka City | D10: Living Wage Benchmark | E10: 4 | F10: 2 | G10: 1.58 | H10: 2016 | I10: 52 | J10: 3.2 | K10: 97.28 | L10: 79 | M10: 8226 | N10: 260.8415785 | O10: 246.278481 | P10: 200 | Q10: 20825.31646 | R10: 660.3584266 | S10: 389.12 | T10: 316 | U10: 32904 | V10: 1043.366314 | W10: 2016, Low poverty line | X10: Bangladesh Bureau of Statistics (BBS) | Y10: =Z10/30.4 -> 61.25 | Z10: 1862 | AA10: 22 | AB10: 18 | AC10: 59.04291504 | AD10: 4713.924051 | AE10: 56 | AF10: 46 | AG10: 149.4757343 | AH10: 7448 | AI10: 88 | AJ10: 72 | AK10: 236.1716602 | AL10: 2013 | AM10: Wage Indicator | AN10: 1500 | AO10: 18 | AP10: 14 | AQ10: 47.56410986 | AR10: 2370 | AS10: 28.44 | AT10: 22.12 | AU10: 75.15129359 | AV10: 2016 | AW10: GLWC | AX10: 16460 | AY10: 194 | AZ10: 158 | BA10: =AX10/BR10 -> 521.9368322 | BB10: =AX10*G10 -> 26006.8 | BC10: =AY10*G10 -> 306.52 | BD10: =AZ10*G10 -> 249.64 | BE10: =BB10/BR10 -> 824.6601949 | BF10: 2016 | BG10: Calculated from GLWC | BH10: 6202.25 | BI10: 73.25 | BJ10: 59.5 | BK10: 196.6696669 | BL10: 24809 | BM10: 293 | BN10: 238 | BO10: 786.6786677 | BP10: Bangladeshi taka | BQ10: BDT | BR10: 31.5363833
A11: Brazil | B11: Urban | C11: Minas Gerais South/Southwestern Region | D11: Living Wage Benchmark | E11: 4 | F11: 2 | G11: 1.71 | H11: 2019 | I11: 20 | J11: 5.5 | K11: 167.2 | L11: 136 | M11: 864 | N11: 360.0634282 | O11: 391.1111111 | P11: 318.128655 | Q11: 2021.052632 | R11: 842.2536332 | S11: 668.8 | T11: 544 | U11: 3456 | V11: 1440.253713 | W11: 2017 | X11: Universidade Federal do Rio Grande do Sul | Y11: =Z11/30.4 -> 2.302631579 | Z11: 70 | AA11: 13.5 | AB11: 11 | AC11: 29.17180552 | AD11: 163.7426901 | AE11: 32 | AF11: 26 | AG11: 68.23814157 | AH11: 280 | AI11: 54 | AJ11: 44 | AK11: 116.6872221 | AL11: 2021 | AM11: Wage Indicator | AN11: 1100 | AO11: 212 | AP11: 173 | AQ11: 458.4140868 | AR11: 1881 | AS11: 362.52 | AT11: 295.83 | AU11: 783.8880884 | AV11: 2019 | AW11: GLWC | AX11: 1650 | AY11: 319 | AZ11: 260 | BA11: =AX11/BR11 -> 687.6211302 | BB11: =AX11*G11 -> 2821.5 | BC11: =AY11*G11 -> 545.49 | BD11: =AZ11*G11 -> 444.6 | BE11: =BB11/BR11 -> 1175.832133 | BF11: 2019 | BG11: Calculated from GLWC | BH11: 759 | BI11: 146.5 | BJ11: 119.25 | BK11: 316.3057199 | BL11: 3036 | BM11: 586 | BN11: 477 | BO11: 1265.22288 | BP11: Brazilian real | BQ11: BRL | BR11: 2.39957722
A12: Brazil | B12: Non-metropolitan | C12: State of São Paulo, non-metropolitan areas | D12: Living Wage Benchmark | E12: 4 | F12: 2 | G12: 1.68 | H12: 2019 | I12: 20 | J12: 5.5 | K12: 167.2 | L12: 136 | M12: 864 | N12: 360.0634282 | O12: 398.0952381 | P12: 323.8095238 | Q12: 2057.142857 | R12: 857.2938766 | S12: 668.8 | T12: 544 | U12: 3456 | V12: 1440.253713 | W12: 2017 | X12: Universidade Federal do Rio Grande do Sul | Y12: =Z12/30.4 -> 2.302631579 | Z12: 70 | AA12: 13.5 | AB12: 11 | AC12: 29.17180552 | AD12: 166.6666667 | AE12: 32 | AF12: 26 | AG12: 69.45667982 | AH12: 280 | AI12: 54 | AJ12: 44 | AK12: 116.6872221 | AL12: 2021 | AM12: Wage Indicator | AN12: 1100 | AO12: 212 | AP12: 173 | AQ12: 458.4140868 | AR12: 1848 | AS12: 356.16 | AT12: 290.64 | AU12: 770.1356658 | AV12: 2021 | AW12: GLWC | AX12: 2551 | AY12: 493 | AZ12: 401 | BA12: =AX12/BR12 -> 1063.103941 | BB12: =AX12*G12 -> 4285.68 | BC12: =AY12*G12 -> 828.24 | BD12: =AZ12*G12 -> 673.68 | BE12: =BB12/BR12 -> 1786.014621 | BF12: 2021 | BG12: Calculated from GLWC | BH12: 932.25 | BI12: 180 | BJ12: 146.5 | BK12: 388.5059386 | BL12: 3729 | BM12: 720 | BN12: 586 | BO12: 1554.023754 | BP12: Brazilian real | BQ12: BRL | BR12: 2.39957722
A13: Burkina Faso | B13: Rural | D13: Living Income Reference Value | E13: 5.5 | F13: 2 | G13: 1.64 | H13: 2014 | I13: 44 | J13: 1.9 | K13: 57.76 | L13: 47 | M13: 30979 | N13: 163.9614171 | O13: 193.7073171 | P13: 157.6219512 | Q13: 103892.9878 | R13: 549.8706061 | S13: 317.68 | T13: 258.5 | U13: 170384.5 | V13: 901.7877939 | W13: 2009 | X13: World Bank, 2016 | Y13: =1.64*223.1 -> 365.884 | Z13: =Y13*30.4 -> 11122.8736 | AA13: 20.90909091 | AB13: 16.90909091 | AC13: 58.86962515 | AD13: 37302.32 | AE13: 70 | AF13: 57 | AG13: 197.4286209 | AH13: 61175.8048 | AI13: 115 | AJ13: 93 | AK13: 323.7829383 | AL13: 2012 | AM13: Wage Indicator | AN13: 34664 | AO13: 65 | AP13: 53 | AQ13: 183.4648814 | AR13: 56848.96 | AS13: 106.6 | AT13: 86.92 | AU13: 300.8824055 | BF13: 2020 | BG13: GLWC | BH13: 15703.09091 | BI13: 29.45454545 | BJ13: 24 | BK13: 83.11117331 | BL13: 86367 | BM13: 162 | BN13: 132 | BO13: 457.1114532 | BP13: West African CFA franc | BQ13: XOF | BR13: 188.940792
A14: Cameroon | B14: Rural | D14: LW & LI Reference Value | E14: 5.5 | F14: 2 | G14: 1.71 | H14: 2014 | I14: 47 | J14: 3.2 | K14: 97.28 | L14: 79 | M14: 51810 | N14: 220.2638377 | O14: 312.8888889 | P14: 254.0935673 | Q14: 166640.3509 | R14: 708.4509401 | S14: 535.04 | T14: 434.5 | U14: 284955 | V14: 1211.451108 | W14: 2007 | X14: World Bank, 2016 | Y14: =2.35*242.7 -> 570.345 | Z14: =Y14*30.4 -> 17338.488 | AA14: 32.54545455 | AB14: 26.36363636 | AC14: 73.71244755 | AD14: 55767.06667 | AE14: 104 | AF14: 85 | AG14: 237.0868196 | AH14: 95361.684 | AI14: 179 | AJ14: 145 | AK14: 405.4184615 | AL14: 2014 | AM14: Wage Indicator | AN14: 36270 | AO14: 68 | AP14: 55 | AQ14: 154.1974405 | AR14: 62021.7 | AS14: 116.28 | AT14: 94.05 | AU14: 263.6776233 | AV14: 2020 | AW14: GLWC | AX14: 104623 | AY14: 196 | AZ14: 160 | BA14: =AX14/BR14 -> 444.7918065 | BB14: =AX14*G14 -> 178905.33 | BC14: =AY14*G14 -> 335.16 | BD14: =AZ14*G14 -> 273.6 | BE14: =BB14/BR14 -> 760.5939891 | BF14: 2020 | BG14: GLWC | BH14: 28317.45455 | BI14: 53.09090909 | BJ14: 43.27272727 | BK14: 120.3881724 | BL14: 155746 | BM14: 292 | BN14: 238 | BO14: 662.1349483 | BP14: Central African CFA franc | BQ14: XAF | BR14: 235.217912
A15: Chile | B15: Non-Metropolitan Urban | D15: Living Wage Reference Value | E15: 4 | F15: 2 | G15: 1.7 | H15: 2017 | I15: 4 | J15: 5.5 | K15: 167.2 | L15: 136 | M15: 118613 | N15: 267.312883 | O15: 393.4117647 | P15: 320 | Q15: 279089.4118 | R15: 628.9714893 | S15: 668.8 | T15: 544 | U15: 474452 | V15: 1069.251532 | W15: 2021 | X15: Ministerio de Desarollo Social | Y15: =Z15/30.4 -> 5810.032895 | Z15: 176625 | AA15: 248.75 | AB15: 202.5 | AC15: 398.0519669 | AD15: 415588.2353 | AE15: 585 | AF15: 476 | AG15: 936.5928633 | AH15: 706500 | AI15: 995 | AJ15: 810 | AK15: 1592.207868 | AL15: 2020 | AM15: Wage Indicator | AN15: 326500 | AO15: 460 | AP15: 375 | AQ15: 735.8186395 | AR15: 555050 | AS15: 781 | AT15: 636 | AU15: 1250.891687 | AV15: 2020 | AW15: GLWC | AX15: 623057 | AY15: 877 | AZ15: 714 | BA15: 1404.156061 | BB15: 1059196.9 | BC15: 1490.9 | BD15: 1213.8 | BE15: 2387.065304 | BF15: 2020 | BG15: Calculated from GLWC | BH15: =(513399*G15)/E15 -> 218194.575 | BI15: 307.25 | BJ15: 250.25 | BK15: 491.7354834 | BL15: =513399*G15 -> 872778.3 | BM15: 1229 | BN15: 1001 | BO15: 1966.941933 | BP15: Chilean peso | BQ15: CLP | BR15: 443.72347
A16: China | B16: Urban | C16: Zhengzhou | D16: Living Wage Benchmark | E16: 3.5 | F16: 2 | G16: 1.78 | H16: 2016 | I16: 24 | J16: 5.5 | K16: 167.2 | L16: 136 | M16: 1090 | N16: 261.0235433 | O16: 328.7640449 | P16: 267.4157303 | Q16: 2143.258427 | R16: 513.2485402 | S16: 585.2 | T16: 476 | U16: 3815 | V16: 913.5824015 | W16: 2011 | X16: World Bank, 2016 | Y16: =1.78*3.7 -> 6.586 | Z16: =Y16*30.4 -> 200.2144 | AA16: 30.57142857 | AB16: 24.85714286 | AC16: 47.94557074 | AD16: 393.68 | AE16: 60 | AF16: 49 | AG16: 94.27499864 | AH16: 700.7504 | AI16: 107 | AJ16: 87 | AK16: 167.8094976 | AL16: 2019, urban | AM16: ILO | AN16: 1416 | AO16: 217 | AP16: 177 | AQ16: 339.0911351 | AR16: 2520.48 | AS16: =AO16*G16 -> 386.26 | AT16: =AP16*G16 -> 315.06 | AU16: 603.5822205 | AV16: 2019 | AW16: GLWC | AX16: 3036 | AY16: 465 | AZ16: 379 | BA16: 727.034383 | BB16: 5404.08 | BC16: 827.7 | BD16: 674.62 | BE16: 1294.121202 | BF16: 2019 | BG16: Calculated from GLWC | BH16: =BL16/E16 -> 1385.142857 | BI16: 212.2857143 | BJ16: 172.8571429 | BK16: 331.7017399 | BL16: 4848 | BM16: 743 | BN16: 605 | BO16: 1160.95609 | BP16: Chinese Yuan Renminbi | BQ16: CNY | BR16: 4.17586853
A17: China | B17: Urban | C17: Chengdu | D17: Living Wage Benchmark | E17: 3.5 | F17: 2 | G17: 1.78 | H17: 2016 | I17: 24 | J17: 5.5 | K17: 167.2 | L17: 136 | M17: 1090 | N17: 261.0235433 | O17: 328.7640449 | P17: 267.4157303 | Q17: 2143.258427 | R17: 513.2485402 | S17: 585.2 | T17: 476 | U17: 3815 | V17: 913.5824015 | W17: 2011 | X17: World Bank, 2016 | Y17: 6.586 | Z17: 200.2144 | AA17: 30.57142857 | AB17: 24.85714286 | AC17: 47.94557074 | AD17: 393.68 | AE17: 60 | AF17: 49 | AG17: 94.27499864 | AH17: 700.7504 | AI17: 107 | AJ17: 87 | AK17: 167.8094976 | AL17: 2019, urban | AM17: ILO | AN17: 1416 | AO17: 217 | AP17: 177 | AQ17: 339.0911351 | AR17: 2520.48 | AS17: 386.26 | AT17: 315.06 | AU17: 603.5822205 | AV17: 2019 | AW17: GLWC | AX17: 2597 | AY17: 398 | AZ17: 324 | BA17: 621.9065522 | BB17: 4622.66 | BC17: 708.44 | BD17: 576.72 | BE17: 1106.993663 | BF17: 2019 | BG17: Calculated from GLWC | BH17: 1183.714286 | BI17: 181.4285714 | BJ17: 147.7142857 | BK17: 283.4654102 | BL17: 4143 | BM17: 635 | BN17: 517 | BO17: 992.1289356 | BP17: Chinese Yuan Renminbi | BQ17: CNY | BR17: 4.17586853
A18: China | B18: Urban | C18: Hangzhou | D18: Living Wage Benchmark | E18: 3.5 | F18: 2 | G18: 1.78 | H18: 2016 | I18: 24 | J18: 5.5 | K18: 167.2 | L18: 136 | M18: 1090 | N18: 261.0235433 | O18: 328.7640449 | P18: 267.4157303 | Q18: 2143.258427 | R18: 513.2485402 | S18: 585.2 | T18: 476 | U18: 3815 | V18: 913.5824015 | W18: 2011 | X18: World Bank, 2016 | Y18: 6.586 | Z18: 200.2144 | AA18: 30.57142857 | AB18: 24.85714286 | AC18: 47.94557074 | AD18: 393.68 | AE18: 60 | AF18: 49 | AG18: 94.27499864 | AH18: 700.7504 | AI18: 107 | AJ18: 87 | AK18: 167.8094976 | AL18: 2019, urban | AM18: ILO | AN18: 1416 | AO18: 217 | AP18: 177 | AQ18: 339.0911351 | AR18: 2520.48 | AS18: 386.26 | AT18: 315.06 | AU18: 603.5822205 | AV18: 2019 | AW18: GLWC | AX18: 4159 | AY18: 637 | AZ18: 519 | BA18: 995.9604739 | BB18: 7403.02 | BC18: 1133.86 | BD18: 923.82 | BE18: 1772.809644 | BF18: 2019 | BG18: Calculated from GLWC | BH18: 1892.857143 | BI18: 290 | BJ18: 236 | BK18: 453.284659 | BL18: 6625 | BM18: 1015 | BN18: 826 | BO18: 1586.496307 | BP18: Chinese Yuan Renminbi | BQ18: CNY | BR18: 4.17586853
A19: China | B19: Urban | C19: Shanghai | D19: Living Wage Benchmark | E19: 3.5 | F19: 2 | G19: 1.78 | H19: 2016 | I19: 24 | J19: 5.5 | K19: 167.2 | L19: 136 | M19: 1090 | N19: 261.0235433 | O19: 328.7640449 | P19: 267.4157303 | Q19: 2143.258427 | R19: 513.2485402 | S19: 585.2 | T19: 476 | U19: 3815 | V19: 913.5824015 | W19: 2011 | X19: World Bank, 2016 | Y19: 6.586 | Z19: 200.2144 | AA19: 30.57142857 | AB19: 24.85714286 | AC19: 47.94557074 | AD19: 393.68 | AE19: 60 | AF19: 49 | AG19: 94.27499864 | AH19: 700.7504 | AI19: 107 | AJ19: 87 | AK19: 167.8094976 | AL19: 2019, urban | AM19: ILO | AN19: 1416 | AO19: 217 | AP19: 177 | AQ19: 339.0911351 | AR19: 2520.48 | AS19: 386.26 | AT19: 315.06 | AU19: 603.5822205 | AV19: 2019 | AW19: GLWC | AX19: 4502 | AY19: 670 | AZ19: 546 | BA19: 1078.099075 | BB19: 8013.56 | BC19: 1192.6 | BD19: 971.88 | BE19: 1919.016354 | BF19: 2019 | BG19: Calculated from GLWC | BH19: 2049.142857 | BI19: 314 | BJ19: 255.7142857 | BK19: 490.7105773 | BL19: 7172 | BM19: 1099 | BN19: 895 | BO19: 1717.487021 | BP19: Chinese Yuan Renminbi | BQ19: CNY | BR19: 4.17586853
A20: China | B20: Urban | C20: Shenzhen | D20: Living Wage Benchmark | E20: 3.5 | F20: 2 | G20: 1.78 | H20: 2016 | I20: 24 | J20: 5.5 | K20: 167.2 | L20: 136 | M20: 1090 | N20: 261.0235433 | O20: 328.7640449 | P20: 267.4157303 | Q20: 2143.258427 | R20: 513.2485402 | S20: 585.2 | T20: 476 | U20: 3815 | V20: 913.5824015 | W20: 2011 | X20: World Bank, 2016 | Y20: 6.586 | Z20: 200.2144 | AA20: 30.57142857 | AB20: 24.85714286 | AC20: 47.94557074 | AD20: 393.68 | AE20: 60 | AF20: 49 | AG20: 94.27499864 | AH20: 700.7504 | AI20: 107 | AJ20: 87 | AK20: 167.8094976 | AL20: 2019, urban | AM20: ILO | AN20: 1416 | AO20: 217 | AP20: 177 | AQ20: 339.0911351 | AR20: 2520.48 | AS20: 386.26 | AT20: 315.06 | AU20: 603.5822205 | AV20: 2019 | AW20: GLWC | AX20: 3004 | AY20: 460 | AZ20: 375 | BA20: 719.3713065 | BB20: 5347.12 | BC20: 818.8 | BD20: 667.5 | BE20: 1280.480925 | BF20: 2019 | BG20: Calculated from GLWC | BH20: 1399.428571 | BI20: 214.5714286 | BJ20: 174.8571429 | BK20: 335.1227562 | BL20: 4898 | BM20: 751 | BN20: 612 | BO20: 1172.929647 | BP20: Chinese Yuan Renminbi | BQ20: CNY | BR20: 4.17586853
A21: China | B21: Urban | C21: Suzhou | D21: Living Wage Benchmark | E21: 3.5 | F21: 2 | G21: 1.78 | H21: 2016 | I21: 24 | J21: 5.5 | K21: 167.2 | L21: 136 | M21: 1090 | N21: 261.0235433 | O21: 328.7640449 | P21: 267.4157303 | Q21: 2143.258427 | R21: 513.2485402 | S21: 585.2 | T21: 476 | U21: 3815 | V21: 913.5824015 | W21: 2011 | X21: World Bank, 2016 | Y21: 6.586 | Z21: 200.2144 | AA21: 30.57142857 | AB21: 24.85714286 | AC21: 47.94557074 | AD21: 393.68 | AE21: 60 | AF21: 49 | AG21: 94.27499864 | AH21: 700.7504 | AI21: 107 | AJ21: 87 | AK21: 167.8094976 | AL21: 2019, urban | AM21: ILO | AN21: 1416 | AO21: 217 | AP21: 177 | AQ21: 339.0911351 | AR21: 2520.48 | AS21: 386.26 | AT21: 315.06 | AU21: 603.5822205 | AV21: 2019 | AW21: GLWC | AX21: 3875 | AY21: 594 | AZ21: 484 | BA21: 927.9506699 | BB21: 6897.5 | BC21: 1057.32 | BD21: 861.52 | BE21: 1651.752192 | BF21: 2019 | BG21: Calculated from GLWC | BH21: 1763.714286 | BI21: 270.2857143 | BJ21: 220 | BK21: 422.3586717 | BL21: 6173 | BM21: 946 | BN21: 770 | BO21: 1478.255351 | BP21: Chinese Yuan Renminbi | BQ21: CNY | BR21: 4.17586853
A22: Colombia | B22: Urban-Rural | C22: Caribbean coast | D22: Living Wage Benchmark | E22: 4 | F22: 2 | G22: 1.61 | H22: 2019 | I22: 29 | J22: 5.5 | K22: 167.2 | L22: 136 | M22: 583460 | N22: 408.1588681 | O22: 415.4037267 | P22: 337.8881988 | Q22: 1449590.062 | R22: 1014.0593 | S22: 668.8 | T22: 544 | U22: 2333840 | V22: 1632.635473 | W22: 2018 | X22: DANE. Gran Encuesta Integrada de Hogares GEIH 2018 | Y22: =Z22/30.4 -> 8468.190789 | Z22: 257433 | AA22: 73.75 | AB22: 60 | AC22: 180.0870015 | AD22: 639585.0932 | AE22: 183 | AF22: 149 | AG22: 447.4211218 | AH22: 1029732 | AI22: 295 | AJ22: 240 | AK22: 720.348006 | AL22: 2021 | AM22: Wage Indicator | AN22: 908526 | AO22: 260 | AP22: 212 | AQ22: 635.5584682 | AR22: 1462726.86 | AS22: 418.6 | AT22: 341.32 | AU22: 1023.249134 | AV22: 2020 | AW22: GLWC | AX22: 1644569 | AY22: 471 | AZ22: 384 | BA22: 1150.456624 | BB22: 2647756.09 | BC22: 758.31 | BD22: 618.24 | BE22: 1852.235164 | BF22: 2020 | BG22: Calculated from GLWC | BH22: 608400 | BI22: 174.25 | BJ22: 142 | BK22: 425.6056206 | BL22: 2433600 | BM22: 697 | BN22: 568 | BO22: 1702.422482 | BP22: Colombian peso | BQ22: COP | BR22: 1429.4924
A23: Costa Rica | B23: Rural | C23: Limón and Heredia Provinces | D23: Living Wage Benchmark | E23: 4 | F23: 2 | G23: 1.56 | H23: 2019 | I23: 11 | J23: 5.5 | K23: 167.2 | L23: 136 | M23: 101908 | N23: 297.2907246 | O23: 428.7179487 | P23: 348.7179487 | Q23: 261302.5641 | R23: 762.2839092 | S23: 668.8 | T23: 544 | U23: 407632 | V23: 1189.162898 | W23: 2018 | X23: Instituto Nacional de Estadística y Censos (INEC) | Y23: =Z23/30.4 -> 277.4671053 | Z23: 8435 | AA23: 13.75 | AB23: 11.25 | AC23: 24.6069716 | AD23: 21628.20513 | AE23: 35 | AF23: 28 | AG23: 63.09479898 | AH23: 33740 | AI23: 55 | AJ23: 45 | AK23: 98.4278864 | AL23: 2019, urban | AM23: ILO | AN23: 320978 | AO23: 526 | AP23: 428 | AQ23: 936.3718471 | AR23: 500725.68 | AS23: 820.56 | AT23: 667.68 | AU23: 1460.740081 | AV23: 2019 | AW23: GLWC | AX23: 483282 | AY23: 792 | AZ23: 645 | BA23: 1409.852573 | BB23: 753919.92 | BC23: 1235.52 | BD23: 1006.2 | BE23: 2199.370013 | BF23: 2019 | BG23: Calculated from GLWC | BH23: 152721.75 | BI23: 250.25 | BJ23: 203.75 | BK23: 445.5269431 | BL23: 610887 | BM23: 1001 | BN23: 815 | BO23: 1782.107772 | BP23: Costa Rican colón | BQ23: CRC | BR23: 342.789033
A24: Cote d'Ivoire | B24: Rural | D24: Living Wage Reference Value | E24: 5.5 | F24: 2 | G24: 1.61 | H24: 2015 | I24: 59 | J24: 3.2 | K24: 97.28 | L24: 79 | M24: 51810 | N24: 220.3111504 | O24: 332.3229814 | P24: 269.8757764 | Q24: 176990.6832 | R24: 752.6157313 | S24: 535.04 | T24: 434.5 | U24: 284955 | V24: 1211.711327 | W24: 2015 | X24: Ministère De L´Économie Et Des Finances | Y24: 737 | Z24: =Y24*30.4 -> 22404.8 | AA24: 42 | AB24: 34.18181818 | AC24: 95.27170939 | AD24: 76538.13665 | AE24: 143 | AF24: 116 | AG24: 325.4623613 | AH24: 123226.4 | AI24: 231 | AJ24: 188 | AK24: 523.9944016 | AL24: 2013 | AM24: Wage Indicator | AN24: 60000 | AO24: 112 | AP24: 91 | AQ24: 255.1374064 | AR24: 96600 | AS24: 180.32 | AT24: 146.51 | AU24: 410.7712243 | AV24: 2020 | AW24: GLWC | AX24: 100590 | AY24: 188 | AZ24: 153 | BA24: 427.7378619 | BB24: 161949.9 | BC24: 302.68 | BD24: 246.33 | BE24: 688.6579576 | BF24: 2020 | BG24: Calculated from GLWC | BH24: =(90516*G24)/E24 -> 26496.50182 | BI24: 49.63636364 | BJ24: 40.36363636 | BK24: 112.6708126 | BL24: =90516*G24 -> 145730.76 | BM24: 273 | BN24: 222 | BO24: 619.689469 | BP24: West African CFA franc | BQ24: XOF | BR24: 235.167398
A25: Cote d'Ivoire | B25: Rural | C25: Cocoa growing areas | D25: Living Income Benchmark | E25: 6 | F25: 2 | G25: 1.65 | H25: 2015 | I25: 59 | J25: 3.2 | K25: 97.28 | L25: 79 | M25: 51810 | N25: 220.3111504 | O25: 353.7454545 | P25: 287.2727273 | Q25: 188400 | R25: 801.1314562 | S25: 583.68 | T25: 474 | U25: 310860 | V25: 1321.866903 | W25: 2015 | X25: Ministère De L´Économie Et Des Finances | Y25: 737 | Z25: =Y25*30.4 -> 22404.8 | AA25: 42 | AB25: 34.16666667 | AC25: 95.27170939 | AD25: 81472 | AE25: 153 | AF25: 125 | AG25: 346.4425796 | AH25: 134428.8 | AI25: 252 | AJ25: 205 | AK25: 571.6302563 | AL25: 2013 | AM25: Wage Indicator | AN25: 60000 | AO25: 112 | AP25: 91 | AQ25: 255.1374064 | AR25: 99000 | AS25: 184.8 | AT25: 150.15 | AU25: 420.9767206 | BF25: 2018 | BG25: LICoP | BH25: =BL25/E25 -> 43676 | BI25: 81.83333333 | BJ25: 66.66666667 | BK25: 185.7230227 | BL25: 262056 | BM25: 491 | BN25: 400 | BO25: 1114.338136 | BP25: West African CFA franc | BQ25: XOF | BR25: 235.167398
A26: Dominican Republic | B26: Rural | C26: Northern Region | D26: Living Wage Benchmark | E26: 4 | F26: 2 | G26: 1.67 | H26: 2019 | I26: 12 | J26: 5.5 | K26: 167.2 | L26: 136 | M26: 9601 | N26: 389.3777459 | O26: 400.4790419 | P26: 325.748503 | Q26: 22996.40719 | R26: 932.6413075 | S26: 668.8 | T26: 544 | U26: 38404 | V26: 1557.510984 | W26: 2019 | X26: Ministerio de Economía, Planificación y Desarrollo (MEPYD) | Y26: =Z26/30.4 -> 168.8157895 | Z26: 5132 | AA26: 89.25 | AB26: 72.75 | AC26: 208.1331728 | AD26: 12292.21557 | AE26: 214 | AF26: 174 | AG26: 498.5225695 | AH26: 20528 | AI26: 357 | AJ26: 291 | AK26: 832.5326911 | AL26: 2019, urban | AM26: ILO | AN26: 12015 | AO26: 209 | AP26: 170 | AQ26: 487.2798268 | AR26: 20065.05 | AS26: 349.03 | AT26: 283.9 | AU26: 813.7573107 | AV26: 2019 | AW26: GLWC | AX26: 17562 | AY26: 305 | AZ26: 248 | BA26: =AX26/BR26 -> 712.2437218 | BB26: =AX26*G26 -> 29328.54 | BC26: =AY26*G26 -> 509.35 | BD26: =AZ26*G26 -> 414.16 | BE26: =BB26/BR26 -> 1189.447015 | BF26: 2019 | BG26: Calculated from GLWC | BH26: =BL26/E26 -> 6864 | BI26: 119.5 | BJ26: 97.25 | BK26: 278.3760908 | BL26: 27456 | BM26: 478 | BN26: 389 | BO26: 1113.504363 | BP26: Dominican peso | BQ26: DOP | BR26: 24.65729
A27: Ecuador | B27: Rural | C27: Southern Coastal Region | D27: Living Wage Benchmark | E27: 4 | F27: 2 | G27: 1.61 | H27: 2019 | I27: 25 | J27: 5.5 | K27: 167.2 | L27: 136 | M27: 167 | N27: 303.0574028 | O27: 415.4037267 | P27: 337.8881988 | Q27: 414.9068323 | R27: 752.9376466 | S27: 668.8 | T27: 544 | U27: 668 | V27: 1212.229611 | W27: 2019 | X27: Instituto Nacional de Estadistica y Censos | Y27: =Z27/30.4 -> 2.796052632 | Z27: 85 | AA27: 85 | AB27: 69 | AC27: 154.2507739 | AD27: 211.1801242 | AE27: 211 | AF27: 172 | AG27: 383.2317363 | AH27: 340 | AI27: 340 | AJ27: 276 | AK27: 617.0030955 | AL27: 2019, urban | AM27: ILO | AN27: 394 | AO27: 394 | AP27: 321 | AQ27: 714.9977047 | AR27: 634.34 | AS27: 634.34 | AT27: 516.81 | AU27: 1151.146305 | AV27: 2020 | AW27: GLWC | AX27: 461 | AY27: 461 | AZ27: 375 | BA27: =AX27/BR27 -> 836.5836089 | BB27: 742.21 | BC27: 742.21 | BD27: 603.75 | BE27: =BB27/BR27 -> 1346.89961 | BF27: 2020 | BG27: Calculated from GLWC | BH27: =BL27/E27 -> 170.25 | BI27: 170.25 | BJ27: 138.75 | BK27: 308.9552265 | BL27: 681 | BM27: 681 | BN27: 555 | BO27: 1235.820906 | BP27: United States dollar | BQ27: USD | BR27: 0.55105072
A28: Egypt, Arab Rep. | B28: Rural | D28: Living Wage Reference Value | E28: 5 | F28: 2 | G28: 1.53 | H28: 2017 | I28: 29 | J28: 3.2 | K28: 97.28 | L28: 79 | M28: 1514 | O28: 317.9084967 | P28: 258.1699346 | Q28: 4947.712418 | S28: 486.4 | T28: 395 | U28: 7570 | AL28: 2019 | AM28: Wage Indicator | AN28: 2000 | AO28: 128 | AP28: 104 | AR28: 3060 | AS28: 195.84 | AT28: 159.12 | AV28: 2020 | AW28: GLWC | AX28: 3957 | AY28: 253 | AZ28: 206 | BB28: 6054.21 | BC28: 387.09 | BD28: 315.18 | BF28: 2020 | BG28: Calculated from GLWC | BH28: =(3686*G28)/E28 -> 1127.916 | BI28: 72.2 | BJ28: 58.8 | BL28: =3686*G28 -> 5639.58 | BM28: 361 | BN28: 294 | BP28: Egyptian pound | BQ28: EGP
A29: El Salvador | B29: Rural | D29: Living Wage Reference Value | E29: 4.5 | F29: 2 | G29: 1.59 | H29: 2019 | I29: 6 | J29: 3.2 | K29: 97.28 | L29: 79 | M29: 849 | N29: =M29/BR29 -> 1699.592654 | O29: 275.3207547 | P29: 223.5849057 | Q29: 2402.830189 | R29: =Q29/BR29 -> 4810.167889 | S29: 437.76 | T29: 355.5 | U29: 3820.5 | V29: =U29/BR29 -> 7648.166944 | W29: 2011 | X29: World Bank, 2016 | Y29: =5.42*0.5 -> 2.71 | Z29: =Y29*30.4 -> 82.384 | AA29: =AI29/E29 -> 9.333333333 | AB29: =AJ29/E29 -> 7.777777778 | AC29: =Z29/BR29 -> 164.9225456 | AD29: =(Y29*30.4*E29)/G29 -> 233.1622642 | AE29: 27 | AF29: 22 | AG29: =AD29/BR29 -> 466.7619216 | AH29: =Y29*30.4*E29 -> 370.728 | AI29: 42 | AJ29: 35 | AK29: =AH29/BR29 -> 742.1514553 | AL29: 2019, urban | AM29: ILO | AN29: 2660 | AO29: 304 | AP29: 248 | AQ29: =AN29/BR29 -> 5324.989942 | AR29: 4229.4 | AS29: 483.36 | AT29: 394.32 | AU29: =AR29/BR29 -> 8466.734007 | AV29: 2020 | AW29: GLWC | AX29: 3136 | AY29: 358 | AZ29: 292 | BA29: =AX29/BR29 -> 6277.882878 | BB29: 4986.24 | BC29: 569.22 | BD29: 464.28 | BE29: =BB29/BR29 -> 9981.833777 | BF29: 2020 | BG29: Calculated from GLWC | BH29: =(2815*G29)/E29 -> 994.6333333 | BI29: 113.7777778 | BJ29: 92.66666667 | BK29: =BH29/BR29 -> 1991.132517 | BL29: =2815*G29 -> 4475.85 | BM29: 512 | BN29: 417 | BO29: =BL29/BR29 -> 8960.096327 | BP29: Salvadoran colon | BQ29: SVC | BR29: 0.49953146
A30: Ethiopia | B30: Non-Metropolitan Urban | C30: Ziway Region | D30: Living Wage Benchmark | E30: 5 | F30: 2 | G30: 1.65 | H30: 2015 | I30: 31 | J30: 1.9 | K30: 57.76 | L30: 47 | M30: 2252 | N30: 209.6493653 | O30: 175.030303 | P30: 142.4242424 | Q30: 6824.242424 | R30: 635.3011068 | S30: 288.8 | T30: 235 | U30: 11260 | V30: 1048.246826 | W30: 2015/16 | X30: Planning and Development Commission | Y30: =7184/365 -> 19.68219178 | Z30: 598.3386301 | AA30: 15.4 | AB30: 12.6 | AC30: 55.70218207 | AD30: 1813.147364 | AE30: 44 | AF30: 37 | AG30: 168.7944911 | AH30: 2991.693151 | AI30: 77 | AJ30: 63 | AK30: 278.5109103 | AV30: 2019 | AW30: GLWC | AX30: 4847 | AY30: 125 | AZ30: 102 | BA30: =AX30/BR30 -> 451.230228 | BB30: 7997.55 | BC30: 206.25 | BD30: 168.3 | BE30: =BB30/BR30 -> 744.5298761 | BF30: 2019 | BG30: Calculated from GLWC | BH30: =BL30/E30 -> 1304 | BI30: 33.6 | BJ30: 27.4 | BK30: 121.3955472 | BL30: 6520 | BM30: 168 | BN30: 137 | BO30: 606.977736 | BP30: Ethiopian birr | BQ30: ETB | BR30: 10.7417449
A31: Ghana | B31: Peri-Urban | C31: Lower Volta Region | D31: Living Wage Benchmark | E31: 4.5 | F31: 2 | G31: 1.78 | H31: 2016 | I31: 29 | J31: 3.2 | K31: 97.28 | L31: 79 | M31: 552 | N31: 284.5666191 | O31: 245.9325843 | P31: 199.7191011 | Q31: 1395.505618 | R31: 719.4099921 | S31: 437.76 | T31: 355.5 | U31: 2484 | V31: 1280.549786 | W31: 2012/13 | X31: Ghana Statistical Service | Y31: =1314/365 -> 3.6 | Z31: 109.44 | AA31: 19.11111111 | AB31: 15.55555556 | AC31: 56.41842535 | AD31: 276.6741573 | AE31: 49 | AF31: 40 | AG31: 142.6308506 | AH31: 492.48 | AI31: 86 | AJ31: 70 | AK31: 253.8829141 | AL31: 2020 | AM31: Wage Indicator | AN31: 319 | AO31: 56 | AP31: 46 | AQ31: =AN31/BR31 -> 164.4506368 | AR31: =AN31*G31 -> 567.82 | AS31: =AO31*G31 -> 99.68 | AT31: =AP31*G31 -> 81.88 | AU31: =AR31/BR31 -> 292.7221335 | AV31: 2019 | AW31: GLWC | AX31: 1244 | AY31: 219 | AZ31: 178 | BA31: =AX31/BR31 -> 641.3059315 | BB31: 2214.32 | BC31: 389.82 | BD31: 316.84 | BE31: =BB31/BR31 -> 1141.524558 | BF31: 2019 | BG31: Calculated from GLWC | BH31: =BL31/E31 -> 418 | BI31: 73.55555556 | BJ31: 60 | BK31: 215.4870413 | BL31: 1881 | BM31: 331 | BN31: 270 | BO31: 969.6916858 | BP31: Ghana cedi | BQ31: GHS | BR31: 1.93979182
A32: Ghana | B32: Rural | C32: Cocoa growing areas of Ashanti, Central, Eastern, Western Regions | D32: Living Income Benchmark | E32: 5 | F32: 2 | G32: 1.56 | H32: 2016 | I32: 29 | J32: 3.2 | K32: 97.28 | L32: 79 | M32: 552 | N32: 284.5666191 | O32: 311.7948718 | P32: 253.2051282 | Q32: 1769.230769 | R32: 912.0724972 | S32: 486.4 | T32: 395 | U32: 2760 | V32: 1422.833096 | W32: 2012/14 | X32: Ghana Statistical Service | Y32: =1314/365 -> 3.6 | Z32: 109.44 | AA32: 19.2 | AB32: 16.2 | AC32: 56.41842535 | AD32: 350.7692308 | AE32: 62 | AF32: 53 | AG32: 180.8282864 | AH32: 547.2 | AI32: 96 | AJ32: 81 | AK32: 282.0921268 | AL32: 2020 | AM32: Wage Indicator | AN32: 319 | AO32: 56 | AP32: 46 | AQ32: 164.4506368 | AR32: 497.64 | AS32: 87.36 | AT32: 71.76 | AU32: 256.5429934 | BF32: 2019 | BG32: LICoP | BH32: =BL32/E32 -> 336.6 | BI32: 59.2 | BJ32: 48.2 | BK32: 173.5237754 | BL32: 1683 | BM32: 296 | BN32: 241 | BO32: 867.6188768 | BP32: Ghana cedi | BQ32: GHS | BR32: 1.93979182
A33: Guatemala | B33: Rural | C33: Central Valley Area | D33: Living Wage Benchmark | E33: 5 | F33: 2 | G33: 1.53 | H33: 2014 | I33: 49 | J33: 5.5 | K33: 167.2 | L33: 136 | M33: 1301 | N33: 286.4229421 | O33: 546.4052288 | P33: 444.4444444 | Q33: 4251.633987 | R33: 936.0226865 | S33: 836 | T33: 680 | U33: 6505 | V33: 1432.11471 | W33: 2014 | X33: Instituto Nacional de Estadística | Y33: =10218/365 -> 27.99452055 | Z33: 851.0334247 | AA33: 109.2 | AB33: 93 | AC33: 187.3601055 | AD33: 2781.154983 | AE33: 357 | AF33: 291 | AG33: 612.2879265 | AH33: 4255.167123 | AI33: 546 | AJ33: 465 | AK33: 936.8005276 | AL33: 2019, urban | AM33: ILO | AN33: 2773 | AO33: 356 | AP33: 290 | AQ33: 610.4925583 | AR33: 4242.69 | AS33: 544.68 | AT33: 443.7 | AU33: 934.0536142 | AV33: 2019 | AW33: GLWC | AX33: 2981 | AY33: 383 | AZ33: 312 | BA33: =AX33/BR33 -> 656.285004 | BB33: =AX33*G33 -> 4560.93 | BC33: =AY33*G33 -> 585.99 | BD33: =AZ33*G33 -> 477.36 | BE33: =BB33/BR33 -> 1004.116056 | BF33: 2019 | BG33: Calculated from GLWC | BH33: =BL33/E33 -> 872.6 | BI33: 112 | BJ33: 91.2 | BK33: 192.1081162 | BL33: 4363 | BM33: 560 | BN33: 456 | BO33: 960.5405812 | BP33: Guatemalan quetzal | BQ33: GTQ | BR33: 4.54223391
A34: Honduras | B34: Rural | D34: Living Wage Reference Value | E34: 4.5 | F34: 2 | G34: 1.65 | H34: 2019 | I34: 29 | J34: 3.2 | K34: 97.28 | L34: 79 | M34: 2338 | N34: 206.5879063 | O34: 265.3090909 | P34: 215.4545455 | Q34: 6376.363636 | R34: 563.4215627 | S34: 437.76 | T34: 355.5 | U34: 10521 | V34: 929.6455784 | W34: 2011 | X34: World Bank, 2016 | Y34: =6.43*10.3 -> 66.229 | Z34: 2013.3616 | AA34: 83.55555556 | AB34: 68 | AC34: 177.9025482 | AD34: 5490.986182 | AE34: 228 | AF34: 186 | AG34: 485.1887677 | AH34: 9060.1272 | AI34: 376 | AJ34: 306 | AK34: 800.5614667 | AL34: 2019, urban | AM34: ILO | AN34: 8484 | AO34: 352 | AP34: 287 | AQ34: 749.6543187 | AR34: 13998.6 | AS34: 580.8 | AT34: 473.55 | AU34: 1236.929626 | AV34: 2020 | AW34: GLWC | AX34: 6852 | AY34: 284 | AZ34: 231 | BA34: =AX34/BR34 -> 605.4492447 | BB34: 11305.8 | BC34: 468.6 | BD34: 381.15 | BE34: =BB34/BR34 -> 998.9912537 | BF34: 2020 | BG34: Calculated from GLWC | BH34: =(6304*G34)/E34 -> 2311.466667 | BI34: 96 | BJ34: 78.22222222 | BK34: 204.2433957 | BL34: =6304*G34 -> 10401.6 | BM34: 432 | BN34: 352 | BO34: 919.0952807 | BP34: Honduran lempira | BQ34: HNL | BR34: 11.3172162
A35: India | B35: Urban | C35: Tiruppur, Tamil Nadu | D35: Living Wage Benchmark | E35: 4 | F35: 2 | G35: 1.58 | H35: 2011 | I35: 62 | J35: 3.2 | K35: 97.28 | L35: 79 | M35: 7099 | N35: 336.87372 | O35: 246.278481 | P35: 200 | Q35: 17972.1519 | R35: 852.8448608 | S35: 389.12 | T35: 316 | U35: 28396 | V35: 1347.49488 | W35: 2012 | X35: World Bank, 2016 | Y35: =1.91*15.3 -> 29.223 | Z35: 888.3792 | AA35: 12.25 | AB35: 10 | AC35: 42.15686799 | AD35: 2249.061266 | AE35: 31 | AF35: 25 | AG35: 106.7262481 | AH35: 3553.5168 | AI35: 49 | AJ35: 40 | AK35: 168.627472 | AL35: 2019 | AM35: ILO | AN35: 4757 | AO35: 65 | AP35: 53 | AQ35: 225.7371864 | AR35: 7516.06 | AS35: 102.7 | AT35: 83.74 | AU35: 356.6647545 | AV35: 2019 | AW35: GLWC | AX35: 15570 | AY35: 213 | AZ35: 173 | BA35: =AX35/BR35 -> 738.8538978 | BB35: 24600.6 | BC35: 336.54 | BD35: 273.34 | BE35: =BB35/BR35 -> 1167.389159 | BF35: 2019 | BG35: Calculated from GLWC | BH35: =BL35/E35 -> 5366 | BI35: 73.25 | BJ35: 59.75 | BK35: 254.6364814 | BL35: 21464 | BM35: 293 | BN35: 239 | BO35: 1018.545926 | BP35: Indian rupee | BQ35: INR | BR35: 21.0731784
A36: India | B36: Rural | C36: Bhadohi, Uttar Pradesh | D36: Living Wage Benchmark | E36: 5 | F36: 2 | G36: 1.546 | H36: 2011 | I36: 62 | J36: 3.2 | K36: 97.28 | L36: 79 | M36: 7099 | N36: 336.87372 | O36: 314.61837 | P36: 255.4980595 | Q36: 22959.24968 | R36: 1089.501035 | S36: 486.4 | T36: 395 | U36: 35495 | V36: 1684.3686 | W36: 2012 | X36: World Bank, 2016 | Y36: =1.91*15.3 -> 29.223 | Z36: 888.3792 | AA36: 12.2 | AB36: 9.8 | AC36: 42.15686799 | AD36: 2873.153946 | AE36: 39 | AF36: 32 | AG36: 136.3417464 | AH36: 4441.896 | AI36: 61 | AJ36: 49 | AK36: 210.78434 | AL36: 2019 | AM36: ILO | AN36: 4757 | AO36: 65 | AP36: 53 | AQ36: 225.7371864 | AR36: 7354.322 | AS36: 100.49 | AT36: 81.938 | AU36: 348.9896901 | AV36: 2019 | AW36: GLWC | AX36: 10627 | AY36: 145 | AZ36: 118 | BA36: =AX36/BR36 -> 504.2903258 | BB36: 16429.342 | BC36: 224.17 | BD36: 182.428 | BE36: =BB36/BR36 -> 779.6328436 | BF36: 2019 | BG36: Calculated from GLWC | BH36: 3285.6 | BI36: 44.8 | BJ36: 36.4 | BK36: 155.9138322 | BL36: 16428 | BM36: 224 | BN36: 182 | BO36: 779.5691608 | BP36: Indian rupee | BQ36: INR | BR36: 21.0731784
A37: India | B37: Rural | C37: Rural Nilgiris, Tamil Nadu | D37: Living Wage Benchmark | E37: 4 | F37: 2 | G37: 1.73 | H37: 2011 | I37: 62 | J37: 3.2 | K37: 97.28 | L37: 79 | M37: 7099 | N37: 336.87372 | O37: 224.9248555 | P37: 182.6589595 | Q37: 16413.87283 | R37: 778.8987746 | S37: 389.12 | T37: 316 | U37: 28396 | V37: 1347.49488 | W37: 2012 | X37: World Bank, 2016 | Y37: =1.91*15.3 -> 29.223 | Z37: 888.3792 | AA37: 12.25 | AB37: 10 | AC37: 42.15686799 | AD37: 2054.055954 | AE37: 28 | AF37: 23 | AG37: 97.47252715 | AH37: 3553.5168 | AI37: 49 | AJ37: 40 | AK37: 168.627472 | AL37: 2019 | AM37: ILO | AN37: 4757 | AO37: 65 | AP37: 53 | AQ37: 225.7371864 | AR37: 8229.61 | AS37: 112.45 | AT37: 91.69 | AU37: 390.5253324 | AV37: 2020 | AW37: GLWC | AX37: 12666 | AY37: 173 | AZ37: 141 | BA37: =AX37/BR37 -> 601.0483924 | BB37: 21912.18 | BC37: 299.29 | BD37: 243.93 | BE37: =BB37/BR37 -> 1039.813719 | BF37: 2020 | BG37: Calculated from GLWC | BH37: 4739.75 | BI37: 64.75 | BJ37: 52.75 | BK37: 224.9186103 | BL37: 18959 | BM37: 259 | BN37: 211 | BO37: 899.6744411 | BP37: Indian rupee | BQ37: INR | BR37: 21.0731784
A38: Kenya | B38: Rural | C38: Mount Kenya | D38: Living Wage Benchmark | E38: 5.5 | F38: 2 | G38: 1.71 | H38: 2015 | I38: 67 | J38: 3.2 | K38: 97.28 | L38: 79 | M38: 10479 | O38: 312.8888889 | P38: 254.0935673 | Q38: 33704.38596 | S38: 535.04 | T38: 434.5 | U38: 57634.5 | W38: 2005 | X38: World Bank, 2016 | Y38: =2.39*35.6 -> 85.084 | Z38: 2586.5536 | AA38: 24 | AB38: 19.45454545 | AD38: 8319.324444 | AE38: 77 | AF38: 63 | AH38: 14226.0448 | AI38: 132 | AJ38: 107 | AL38: 2020, agriculture, unskilled worker | AM38: Wage Indicator | AN38: 6736 | AO38: 62 | AP38: 51 | AR38: 11518.56 | AS38: 106.02 | AT38: 87.21 | AV38: 2016 | AW38: GLWC | AX38: 13943 | AY38: 129 | AZ38: 105 | BB38: 23842.53 | BC38: 220.59 | BD38: 179.55 | BF38: 2016 | BG38: Calculated from GLWC | BH38: 3995.818182 | BI38: 36.90909091 | BJ38: 30 | BL38: 21977 | BM38: 203 | BN38: 165 | BP38: Kenyan shilling | BQ38: KES
A39: Kenya | B39: Non-metropolitan Urban | C39: Lake Naivasha | D39: Living Wage Benchmark | E39: 5 | F39: 2 | G39: 1.69 | H39: 2015 | I39: 67 | J39: 3.2 | K39: 97.28 | L39: 79 | M39: 10479 | O39: 287.8106509 | P39: 233.7278107 | Q39: 31002.95858 | S39: 486.4 | T39: 395 | U39: 52395 | W39: 2005 | X39: World Bank, 2016 | Y39: =2.39*35.6 -> 85.084 | Z39: 2586.5536 | AA39: 24 | AB39: 19.4 | AD39: 7652.525444 | AE39: 71 | AF39: 58 | AH39: 12932.768 | AI39: 120 | AJ39: 97 | AL39: 2019, urban | AM39: ILO | AN39: 15125 | AO39: 140 | AP39: 114 | AR39: 25561.25 | AS39: 236.6 | AT39: 192.66 | AV39: 2019 | AW39: GLWC | AX39: 26546 | AY39: 246 | AZ39: 200 | BB39: 44862.74 | BC39: 415.74 | BD39: 338 | BF39: 2019 | BG39: Calculated from GLWC | BH39: 7924.4 | BI39: 73.4 | BJ39: 59.8 | BL39: 39622 | BM39: 367 | BN39: 299 | BP39: Kenyan shilling | BQ39: KES
A40: Madagascar | B40: Rural | D40: Living Income Reference Value | E40: 5 | F40: 2 | G40: 1.78 | H40: 2012 | I40: 79 | J40: 1.9 | K40: 57.76 | L40: 47 | M40: 219919 | N40: =M40/BR40 -> 207.6926685 | O40: 162.247191 | P40: 132.0224719 | Q40: 617750 | R40: =Q40/BR40 -> 583.4063721 | S40: 288.8 | T40: 235 | U40: 1099595 | V40: =U40/BR40 -> 1038.463342 | W40: 2010 | X40: World Bank, 2016 | Y40: =1.62*700.2 -> 1134.324 | Z40: 34483.4496 | AA40: 9 | AB40: 7.4 | AC40: =Z40/BR40 -> 32.56635245 | AD40: 96863.62247 | AE40: 26 | AF40: 21 | AG40: =AD40/BR40 -> 91.47851812 | AH40: 172417.248 | AI40: 45 | AJ40: 37 | AK40: =AH40/BR40 -> 162.8317623 | AL40: 2021, agriculture, lowest | AM40: Wage Indicator | AN40: 170442 | AO40: 45 | AP40: 37 | AQ40: =AN40/BR40 -> 160.9663276 | AR40: 303386.76 | AS40: 80.1 | AT40: 65.86 | AU40: =AR40/BR40 -> 286.5200631 | BF40: 2020 | BG40: GLWC | BH40: 102538.6 | BI40: 27 | BJ40: 22 | BK40: =BH40/BR40 -> 96.83799696 | BL40: 512693 | BM40: 135 | BN40: 110 | BO40: =BL40/BR40 -> 484.1899848 | BP40: Malagasy ariary | BQ40: MGA | BR40: 1058.86742
A41: Malawi | B41: Rural | C41: Southern Region | D41: Living Wage Benchmark | E41: 5 | F41: 2 | G41: 1.59 | H41: 2016 | I41: 69 | J41: 1.9 | K41: 57.76 | L41: 47 | M41: 44323 | N41: 155.4078893 | O41: 181.6352201 | P41: 147.7987421 | Q41: 139380.5031 | R41: 488.7040545 | S41: 288.8 | T41: 235 | U41: 221615 | V41: 777.0394466 | W41: 2016 | X41: The National Statistics Office of Malawi/ The World Bank | Y41: =137425/365 -> 376.5068493 | Z41: 11445.80822 | AA41: 15 | AB41: 12.8 | AC41: 40.13196077 | AD41: 35993.10761 | AE41: 47 | AF41: 38 | AG41: 126.2011345 | AH41: 57229.0411 | AI41: 75 | AJ41: 64 | AK41: 200.6598038 | AL41: 2020 | AM41: Wage Indicator | AN41: 35000 | AO41: 46 | AP41: 37 | AQ41: 122.7190426 | AR41: 55650 | AS41: 73.14 | AT41: 58.83 | AU41: 195.1232778 | AV41: 2019 | AW41: GLWC | AX41: 101361 | AY41: 133 | AZ41: 108 | BA41: =AX41/BR41 -> 355.3978537 | BB41: =AX41*G41 -> 161163.99 | BC41: =AY41*G41 -> 211.47 | BD41: =AZ41*G41 -> 171.72 | BE41: =BB41/BR41 -> 565.0825874 | BF41: 2019 | BG41: Calculated from GLWC | BH41: 27092.2 | BI41: =BM41/E41 -> 35.4 | BJ41: 28.8 | BK41: 94.99225276 | BL41: 135461 | BM41: 177 | BN41: 144 | BO41: 474.9612638 | BP41: Malawi kwacha | BQ41: MWK | BR41: 285.204311
A42: Mexico | B42: Non-metropolitan Urban & Rural | C42: Michoacán, northwestern regions | D42: Living Wage Benchmark | E42: 4 | F42: 2 | G42: 1.63 | H42: 2018 | I42: 23 | J42: 5.5 | K42: 167.2 | L42: 136 | M42: 3314 | N42: 319.7979232 | O42: 410.3067485 | P42: 333.7423313 | Q42: 8132.515337 | R42: 784.7801797 | S42: 668.8 | T42: 544 | U42: 13256 | V42: 1279.191693 | W42: 2021 | X42: Conseja Nacional de Evaluación de la Politíca de Desarolla Social | Y42: =Z42/30.4 -> 71.28289474 | Z42: 2167 | AA42: 109.25 | AB42: 89 | AC42: 209.1134881 | AD42: 5317.791411 | AE42: 268 | AF42: 218 | AG42: 513.161934 | AH42: 8668 | AI42: 437 | AJ42: 356 | AK42: 836.4539525 | AL42: 2019, urban | AM42: ILO | AN42: 2759 | AO42: 139 | AP42: 113 | AQ42: 266.2409385 | AR42: 4497.17 | AS42: 226.57 | AT42: 184.19 | AU42: 433.9727297 | AV42: 2020 | AW42: GLWC | AX42: 11782 | AY42: 594 | AZ42: 484 | BA42: =AX42/BR42 -> 1136.952061 | BB42: =AX42*G42 -> 19204.66 | BC42: =AY42*G42 -> 968.22 | BD42: =AZ42*G42 -> 788.92 | BE42: =BB42/BR42 -> 1853.23186 | BF42: 2020 | BG42: Calculated from GLWC | BH42: 4166 | BI42: 210 | BJ42: 171 | BK42: 402.0151322 | BL42: 16664 | BM42: 840 | BN42: 684 | BO42: 1608.060529 | BP42: Mexican peso | BQ42: MXN | BR42: 10.362794
A43: Morocco | B43: Rural | D43: Living Wage Reference Value | E43: 4.5 | F43: 2 | G43: 1.56 | H43: 2013 | I43: 7 | J43: 3.2 | K43: 97.28 | L43: 79 | M43: 863 | N43: 205.4324774 | O43: 280.6153846 | P43: 227.8846154 | Q43: 2489.423077 | R43: 592.5936847 | S43: 437.76 | T43: 355.5 | U43: 3883.5 | V43: 924.4461482 | W43: 2007 | X43: World Bank, 2016 | Y43: =2.55*4.1 -> 10.455 | Z43: =Y43*30.4 -> 317.832 | AA43: 35.77777778 | AB43: 29.11111111 | AC43: 75.65818673 | AD43: 916.8230769 | AE43: 103 | AF43: 84 | AG43: 218.2447694 | AH43: 1430.244 | AI43: 161 | AJ43: 131 | AK43: 340.4618403 | AL43: 2021, agriculture | AM43: Wage Indicator | AN43: 1904 | AO43: 214 | AP43: 174 | AQ43: 453.236891 | AR43: 2970.24 | AS43: 333.84 | AT43: 271.44 | AU43: 707.04955 | AV43: 2020 | AW43: GLWC | AX43: 2249 | AY43: 253 | AZ43: 206 | BA43: =AX43/BR43 -> 535.362273 | BB43: =AX43*G43 -> 3508.44 | BC43: =AY43*G43 -> 394.68 | BD43: =AZ43*G43 -> 321.36 | BE43: =BB43/BR43 -> 835.1651459 | BF43: 2020 | BG43: Calculated from GLWC | BH43: =(2097*G43)/E43 -> 726.96 | BI43: 81.77777778 | BJ43: 66.66666667 | BK43: 173.048892 | BL43: =2097*G43 -> 3271.32 | BM43: 368 | BN43: 300 | BO43: 778.7200138 | BP43: Moroccan dirham | BQ43: MAD | BR43: 4.2008937
A44: Mozambique | B44: Rural | D44: Living Income Reference Value | E44: 5.5 | F44: 2 | G44: 1.71 | H44: 2014 | I44: 64 | J44: 1.9 | K44: 57.76 | L44: 47 | M44: 4331 | N44: 192.3562221 | O44: 185.7777778 | P44: 151.1695906 | Q44: 13930.11696 | R44: 618.6896032 | S44: 317.68 | T44: 258.5 | U44: 23820.5 | V44: 1057.959221 | W44: 2009 | X44: World Bank, 2016 | Y44: =1.45*15.8 -> 22.91 | Z44: =Y44*30.4 -> 696.464 | AA44: 9.272727273 | AB44: 7.636363636 | AC44: 30.93262153 | AD44: 2240.088889 | AE44: 30 | AF44: 24 | AG44: 99.49088797 | AH44: 3830.552 | AI44: 51 | AJ44: 42 | AK44: 170.1294184 | AL44: 2021, agriculture | AM44: Wage Indicator | AN44: 4390 | AO44: 59 | AP44: 48 | AQ44: 194.976637 | AR44: 7506.9 | AS44: 100.89 | AT44: 82.08 | AU44: 333.4100493 | BF44: 2020 | BG44: GLWC | BH44: =BL44/E44 -> 1658.363636 | BI44: 22.18181818 | BJ44: 18 | BK44: 73.65425166 | BL44: 9121 | BM44: 122 | BN44: 99 | BO44: 405.0983841 | BP44: Mozambique Metical | BQ44: MZN | BR44: 22.5155181
A45: Nicaragua | B45: Urban | C45: Managua Free Trade Zone | D45: Living Wage Benchmark | E45: 4 | F45: 2 | G45: 1.68 | H45: 2014 | I45: 13 | J45: 3.2 | K45: 97.28 | L45: 79 | M45: 3378 | N45: 276.348699 | O45: 231.6190476 | P45: 188.0952381 | Q45: 8042.857143 | R45: 657.973093 | S45: 389.12 | T45: 316 | U45: 13512 | V45: 1105.394796 | W45: 2016 | X45: INIDE Instituto Nacional de información de Desarrollo | Y45: =18311/365 -> 50.16712329 | Z45: =Y45*30.4 -> 1525.080548 | AA45: 43.75 | AB45: 37.25 | AC45: 124.7643651 | AD45: 3631.144162 | AE45: 104 | AF45: 85 | AG45: 297.0580122 | AH45: 6100.322192 | AI45: 175 | AJ45: 149 | AK45: 499.0574605 | AL45: 2019 | AM45: ILO | AN45: 5919 | AO45: 170 | AP45: 138 | AQ45: 484.2237862 | AR45: 9943.92 | AS45: 285.6 | AT45: 231.84 | AU45: 813.4959608 | AV45: 2019 | AW45: GLWC | AX45: 12101 | AY45: 348 | AZ45: 283 | BA45: =AX45/BR45 -> 989.9631756 | BB45: =AX45*G45 -> 20329.68 | BC45: =AY45*G45 -> 584.64 | BD45: =AZ45*G45 -> 475.44 | BE45: =BB45/BR45 -> 1663.138135 | BF45: 2019 | BG45: Calculated from GLWC | BH45: 4489.5 | BI45: 129 | BJ45: 105 | BK45: 367.2787106 | BL45: 17958 | BM45: 516 | BN45: 420 | BO45: 1469.114842 | BP45: Nicaraguan córdoba | BQ45: NIO | BR45: 12.223687
A46: Nicaragua | B46: Rural-Urban | C46: Northwest | D46: Living Wage Benchmark | E46: 4 | F46: 2 | G46: 1.62 | H46: 2014 | I46: 13 | J46: 3.2 | K46: 97.28 | L46: 79 | M46: 3378 | N46: 276.348699 | O46: 240.1975309 | P46: 195.0617284 | Q46: 8340.740741 | R46: 682.3424668 | S46: 389.12 | T46: 316 | U46: 13512 | V46: 1105.394796 | W46: 2016 | X46: INIDE Instituto Nacional de información de Desarrollo | Y46: =18311/365 -> 50.16712329 | Z46: =Y46*30.4 -> 1525.080548 | AA46: 43.75 | AB46: 37.25 | AC46: 124.7643651 | AD46: 3765.630983 | AE46: 108 | AF46: 88 | AG46: 308.0601608 | AH46: 6100.322192 | AI46: 175 | AJ46: 149 | AK46: 499.0574605 | AL46: 2021, agriculture | AM46: Wage Indicator | AN46: 4415 | AO46: 127 | AP46: 103 | AQ46: 361.1839865 | AR46: 7152.3 | AS46: 205.74 | AT46: 166.86 | AU46: 585.1180581 | AV46: 2020 | AW46: GLWC | AX46: 9900 | AY46: 284 | AZ46: 231 | BA46: =AX46/BR46 -> 809.9029368 | BB46: =AX46*G46 -> 16038 | BC46: =AY46*G46 -> 460.08 | BD46: =AZ46*G46 -> 374.22 | BE46: =BB46/BR46 -> 1312.042758 | BF46: 2020 | BG46: Calculated from GLWC | BH46: 3728.75 | BI46: 107 | BJ46: 87.25 | BK46: 305.0429874 | BL46: 14915 | BM46: 428 | BN46: 349 | BO46: 1220.17195 | BP46: Nicaraguan córdoba | BQ46: NIO | BR46: 12.223687
A47: Nigeria | B47: Rural | D47: Living Income Reference Value | E47: 5 | F47: 2 | G47: 1.71 | H47: 2018 | I47: 71 | J47: 3.2 | K47: 97.28 | L47: 79 | M47: 38168 | N47: 284.3955257 | O47: 284.4444444 | P47: 230.994152 | Q47: 111602.3392 | R47: 831.5658646 | S47: 486.4 | T47: 395 | U47: 190840 | V47: 1421.977628 | W47: 2010 | X47: World Bank, 2016 | Y47: =1.65*83.6 -> 137.94 | Z47: =Y47*30.4 -> 4193.376 | AA47: 10.6 | AB47: 8.6 | AC47: 31.24547715 | AD47: 12261.33333 | AE47: 31 | AF47: 25 | AG47: 91.3610443 | AH47: 20966.88 | AI47: 53 | AJ47: 43 | AK47: 156.2273858 | AL47: 2019 | AM47: Wage Indicator | AN47: 30000 | AO47: 76 | AP47: 62 | AQ47: 223.5345255 | AR47: 51300 | AS47: 129.96 | AT47: 106.02 | AU47: 382.2440387 | BF47: 2020 | BG47: GLWC | BH47: 27735.6 | BI47: 70.4 | BJ47: 57.4 | BK47: 206.6621395 | BL47: 138678 | BM47: 352 | BN47: 287 | BO47: 1033.310698 | BP47: Nigerian naira | BQ47: NGN | BR47: 134.207456
A48: Pakistan | B48: Rural | C48: Sialkot | D48: Living Wage Benchmark | E48: 5.5 | F48: 2 | G48: 1.647 | H48: 2018 | I48: 36 | J48: 3.2 | K48: 97.28 | L48: 79 | M48: 15501 | N48: 418.4626499 | O48: 324.8573163 | P48: 263.8129933 | Q48: 51764.11658 | R48: 1397.416256 | S48: 535.04 | T48: 434.5 | U48: 85255.5 | V48: 2301.544574 | W48: 2013/ 13 | X48: World Bank Group | Y48: =Z48/30.4 -> 99.67105263 | Z48: 3030 | AA48: 18.90909091 | AB48: 15.45454545 | AC48: 81.7974214 | AD48: 10118.39709 | AE48: 63 | AF48: 51 | AG48: 273.1547163 | AH48: 16665 | AI48: 104 | AJ48: 85 | AK48: 449.8858177 | AL48: 2019 | AM48: ILO | AN48: 18696 | AO48: 117 | AP48: 95 | AQ48: 504.7143863 | AR48: 30792.312 | AS48: 192.699 | AT48: 156.465 | AU48: 831.2645942 | AV48: 2019 | AW48: GLWC | AX48: 21890 | AY48: 137 | AZ48: 112 | BA48: =AX48/BR48 -> 590.9391269 | BB48: =AX48*G48 -> 36052.83 | BC48: =AY48*G48 -> 225.639 | BD48: =AZ48*G48 -> 184.464 | BE48: =BB48/BR48 -> 973.2767419 | BF48: 2019 | BG48: Calculated from GLWC | BH48: 6555.090909 | BI48: 41.09090909 | BJ48: 33.45454545 | BK48: 176.960242 | BL48: 36053 | BM48: 226 | BN48: 184 | BO48: 973.2813312 | BP48: Pakistan rupee | BQ48: PKR | BR48: 37.0427325
A49: Pakistan | B49: Urban | C49: Sialkot | D49: Living Wage Benchmark | E49: 5 | F49: 2 | G49: 1.534 | H49: 2018 | I49: 36 | J49: 3.2 | K49: 97.28 | L49: 79 | M49: 15501 | N49: 418.4626499 | O49: 317.0795306 | P49: 257.4967405 | Q49: 50524.77184 | R49: 1363.959093 | S49: 486.4 | T49: 395 | U49: 77505 | V49: 2092.313249 | W49: 2013/14 | X49: World Bank Group | Y49: =Z49/30.4 -> 99.67105263 | Z49: 3030 | AA49: 19 | AB49: 15.4 | AC49: 81.7974214 | AD49: 9876.140808 | AE49: 62 | AF49: 50 | AG49: 266.6148025 | AH49: 15150 | AI49: 95 | AJ49: 77 | AK49: 408.987107 | AL49: 2019 | AM49: ILO | AN49: 18696 | AO49: 117 | AP49: 95 | AQ49: 504.7143863 | AR49: 28679.664 | AS49: 179.478 | AT49: 145.73 | AU49: 774.2318686 | AV49: 2019 | AW49: GLWC | AX49: 25806 | AY49: 161 | AZ49: 131 | BA49: =AX49/BR49 -> 696.6548702 | BB49: =AX49*G49 -> 39586.404 | BC49: =AY49*G49 -> 246.974 | BD49: =AZ49*G49 -> 200.954 | BE49: =BB49/BR49 -> 1068.668571 | BF49: 2019 | BG49: Calculated from GLWC | BH49: 7949.8 | BI49: 49.8 | BJ49: 40.6 | BK49: 214.6115976 | BL49: 39749 | BM49: 249 | BN49: 203 | BO49: 1073.057988 | BP49: Pakistan rupee | BQ49: PKR | BR49: 37.0427325
A50: Panama | B50: Rural | D50: Living Wage Reference Value | E50: 4 | F50: 2 | G50: 1.68 | H50: 2019 | I50: 12 | J50: 5.5 | K50: 167.2 | L50: 136 | M50: 167 | N50: 341.458659 | O50: 398.0952381 | P50: 323.8095238 | Q50: 397.6190476 | R50: 812.9968073 | S50: 668.8 | T50: 544 | U50: 668 | V50: 1365.834636 | W50: 2011 | X50: World Bank, 2016 | Y50: =6.96*0.6 -> 4.176 | Z50: =Y50*30.4 -> 126.9504 | AA50: 153.25 | AB50: 124.75 | AC50: 259.5707386 | AD50: 302.2628571 | AE50: 302 | AF50: 246 | AG50: 618.0255681 | AH50: 507.8016 | AI50: 613 | AJ50: 499 | AK50: 1038.282954 | AL50: 2019 | AM50: ILO | AN50: 458 | AO50: 458 | AP50: 373 | AQ50: 936.4554841 | AR50: 769.44 | AS50: 769.44 | AT50: 626.64 | AU50: 1573.245213 | AV50: 2020 | AW50: GLWC | AX50: 569 | AY50: 569 | AZ50: 463 | BA50: =AX50/BR50 -> 1163.413036 | BB50: =AX50*G50 -> 955.92 | BC50: =AY50*G50 -> 955.92 | BD50: =AZ50*G50 -> 777.84 | BE50: =BB50/BR50 -> 1954.5339 | BF50: 2020 | BG50: Calculated from GLWC | BH50: =(513*G50)/E50 -> 215.46 | BI50: 215.5 | BJ50: 175.5 | BK50: 440.5430101 | BL50: =513*G50 -> 861.84 | BM50: 862 | BN50: 702 | BO50: 1762.17204 | BP50: United States dollar | BQ50: USD | BR50: 0.48907824
A51: Papua New Guinea | B51: Rural | D51: Living Income Reference Value | E51: 5 | F51: 2 | G51: 1.67 | H51: 2009 | I51: 66 | J51: 3.2 | K51: 97.28 | L51: 79 | M51: 340 | N51: 121.0192889 | O51: 291.257485 | P51: 236.5269461 | Q51: 1017.964072 | R51: 362.3332004 | S51: 486.4 | T51: 395 | U51: 1700 | V51: 605.0964447 | W51: 2010 | X51: World Bank, 2016 | Y51: =1.92*2.1 -> 4.032 | Z51: =Y51*30.4 -> 122.5728 | AA51: 35 | AB51: 28.4 | AC51: 43.6284503 | AD51: 366.9844311 | AE51: 105 | AF51: 85 | AG51: 130.6241027 | AH51: 612.864 | AI51: 175 | AJ51: 142 | AK51: 218.1422515 | AL51: 2016 | AM51: Wage Indicator | AN51: 683 | AO51: 195 | AP51: 159 | AQ51: 243.1063952 | AR51: 1140.61 | AS51: 325 | AT51: 265 | AU51: 405.9876799 | BF51: 2020 | BG51: GLWC | BH51: =BL51/E51 -> 318.6 | BI51: 90.8 | BJ51: 74 | BK51: 113.4021925 | BL51: 1593 | BM51: 454 | BN51: 370 | BO51: 567.0109626 | BP51: Papua New Guinean kina | BQ51: PGK | BR51: 2.80946949
A52: Peru | B52: Rural | D52: LW & LI Reference Value | E52: 5 | F52: 2 | G52: 1.72 | H52: 2019 | I52: 21 | J52: 5.5 | K52: 167.2 | L52: 136 | M52: 604 | N52: 321.4875805 | O52: 486.0465116 | P52: 395.3488372 | Q52: 1755.813953 | R52: 934.5569201 | S52: 836 | T52: 680 | U52: 3020 | V52: 1607.437903 | W52: 2018 | X52: Instituto Nacional de Estadistica e Informatica | Y52: =Z52/30.4 -> 11.31578947 | Z52: 344 | AA52: 95.2 | AB52: 77.6 | AC52: 183.0988869 | AD52: 1000 | AE52: 277 | AF52: 226 | AG52: 532.2642062 | AH52: 1720 | AI52: 476 | AJ52: 388 | AK52: 915.4944346 | AL52: 2018 | AM52: Wage Indicator | AN52: 930 | AO52: 257 | AP52: 209 | AQ52: 495.0057117 | AR52: 1599.6 | AS52: =AO52*G52 -> 442.04 | AT52: =AP52*G52 -> 359.48 | AU52: 851.4098242 | AV52: 2020 | AW52: GLWC | AX52: 1582 | AY52: 438 | AZ52: 357 | BA52: =AX52/BR52 -> 842.0419741 | BB52: =AX52*G52 -> 2721.04 | BC52: =AY52*G52 -> 753.36 | BD52: =AZ52*G52 -> 614.04 | BE52: =BB52/BR52 -> 1448.312196 | BF52: 2020 | BG52: GLWC | BH52: 410 | BI52: 113.4 | BJ52: 92.4 | BK52: 218.2283245 | BL52: 2050 | BM52: 567 | BN52: 462 | BO52: 1091.141623 | BP52: Peruvian sol | BQ52: PEN | BR52: 1.8787662
A53: Rwanda | B53: Rural | D53: LW & LI Reference Value | E53: 5 | F53: 2 | G53: 1.69 | H53: 2016 | I53: 57 | J53: 1.9 | K53: 57.76 | L53: 47 | M53: 56190 | N53: 193.6779865 | O53: 170.887574 | P53: 139.0532544 | Q53: 166242.6036 | R53: 573.0117945 | S53: 288.8 | T53: 235 | U53: 280950 | V53: 968.3899327 | W53: 2011 | X53: World Bank, 2016 | Y53: =1.46*251 -> 366.46 | Z53: =Y53*30.4 -> 11140.384 | AA53: 11.4 | AB53: 9.4 | AC53: 38.39913049 | AD53: 32959.71598 | AE53: 34 | AF53: 28 | AG53: 113.6068949 | AH53: 55701.92 | AI53: 57 | AJ53: 47 | AK53: 191.9956525 | AL53: 2019 | AM53: ILO | AN53: 2906 | AO53: 3.4 | AP53: 2.7 | AQ53: 10.01651947 | AR53: 4911.14 | AS53: 5.746 | AT53: 4.563 | AU53: 16.9279179 | AV53: 2020 | AW53: GLWC | AX53: 147111 | AY53: 152 | AZ53: 124 | BA53: 507.0682021 | BB53: 248617.59 | BC53: 256.88 | BD53: 209.56 | BE53: 856.9452616 | BF53: 2020 | BG53: GLWC | BH53: 37526.6 | BI53: 38.8 | BJ53: 31.6 | BK53: 129.3482173 | BL53: 187633 | BM53: 194 | BN53: 158 | BO53: 646.7410864 | BP53: Rwandan franc | BQ53: RWF | BR53: 290.120736
A54: South Africa | B54: Rural | C54: Western Cape Province | D54: Living Wage Benchmark | E54: 4.5 | F54: 2 | G54: 1.64 | H54: 2014 | I54: 57 | J54: 5.5 | K54: 167.2 | L54: 136 | M54: 2448 | N54: 358.2655988 | O54: 458.7804878 | P54: 373.1707317 | Q54: 6717.073171 | R54: 983.0458504 | S54: 752.4 | T54: 612 | U54: 11016 | V54: 1612.195195 | W54: 2019 | X54: Department Statistics South Africa - Republic of South Africa | Y54: =Z54/30.4 -> 26.64473684 | Z54: 810 | AA54: 55.33333333 | AB54: 45.11111111 | AC54: 118.5437643 | AD54: 2222.560976 | AE54: 152 | AF54: 124 | AG54: 325.272524 | AH54: 3645 | AI54: 249 | AJ54: 203 | AK54: 533.4469394 | AL54: 2019 | AM54: ILO | AN54: 3547 | AO54: 242 | AP54: 197 | AQ54: 519.1046075 | AR54: 5817.08 | AS54: 396.88 | AT54: 323.08 | AU54: 851.3315562 | AV54: 2019 | AW54: GLWC | AX54: 4280 | AY54: 292 | AZ54: 238 | BA54: 626.3793966 | BB54: 7019.2 | BC54: 478.88 | BD54: 390.32 | BE54: 1027.26221 | BF54: 2019 | BG54: Calculated from GLWC | BH54: 1544.444444 | BI54: 105.3333333 | BJ54: 85.77777778 | BK54: 226.0299484 | BL54: 6950 | BM54: 474 | BN54: 386 | BO54: 1017.134768 | BP54: South African rand | BQ54: ZAR | BR54: 6.83291951
A55: Sri Lanka | B55: Rural | C55: Estate Sector | D55: Living Wage Benchmark | E55: 4.5 | F55: 2 | G55: 1.76 | H55: 2016 | I55: 11 | J55: 3.2 | K55: 97.28 | L55: 79 | M55: 18267 | N55: 324.6485801 | O55: 248.7272727 | P55: 201.9886364 | Q55: 46705.39773 | R55: 830.0673923 | S55: 437.76 | T55: 355.5 | U55: 82201.5 | V55: 1460.91861 | W55: 2016 | X55: Department of Census and Statistics, Sri Lanka | Y55: =Z55/30.4 -> 137.0394737 | Z55: 4166 | AA55: 22.22222222 | AB55: 18 | AC55: 74.03985245 | AD55: 10651.70455 | AE55: 57 | AF55: 46 | AG55: 189.3064409 | AH55: 18747 | AI55: 100 | AJ55: 81 | AK55: 333.179336 | AL55: 2019 | AM55: ILO | AN55: 13182 | AO55: 70 | AP55: 57 | AQ55: 234.2758845 | AR55: 23200.32 | AS55: 123.2 | AT55: 100.32 | AU55: 412.3255568 | AV55: 2019 | AW55: GLWC | AX55: 23785 | AY55: 126 | AZ55: 103 | BA55: 422.7167284 | BB55: 41861.6 | BC55: 221.76 | BD55: 181.28 | BE55: 743.981442 | BF55: 2019 | BG55: Calculated from GLWC | BH55: 8412 | BI55: 44.66666667 | BJ55: 36.44444444 | BK55: 149.5014975 | BL55: 37854 | BM55: 201 | BN55: 164 | BO55: 672.756739 | BP55: Sri Lankan rupee | BQ55: LKR | BR55: 56.2669949
A56: Tanzania | B56: Rural | D56: LW & LI Reference Value | E56: 5.5 | G56: 1.73 | H56: 2017 | I56: 77 | J56: 3.2 | K56: 97.28 | L56: 79 | M56: 221787 | N56: 286.2755684 | O56: 309.2716763 | P56: 251.1560694 | Q56: 705103.1792 | R56: 910.1246396 | S56: 535.04 | T56: 434.5 | U56: 1219828.5 | V56: 1574.515626 | W56: 2012 | X56: World Bank, 2016 | Y56: =1.44*588.8 -> 847.872 | Z56: =Y56*30.4 -> 25775.3088 | AA56: 11.27272727 | AB56: 9.090909091 | AC56: 33.26994449 | AD56: 81944.62335 | AE56: 36 | AF56: 29 | AG56: 105.7714998 | AH56: 141764.1984 | AI56: 62 | AJ56: 50 | AK56: 182.9846947 | AL56: 2013, Agriculture | AM56: Wage Indicator | AN56: 100000 | AO56: 44 | AP56: 36 | AQ56: 129.0768027 | AR56: 173000 | AS56: 76.12 | AT56: 62.28 | AU56: 223.3028687 | AV56: 2020 | AW56: GLWC | AX56: 317779 | AY56: 139 | AZ56: 113 | BA56: 410.1789729 | BB56: 549757.67 | BC56: 240.47 | BD56: 195.49 | BE56: 709.6096231 | BF56: 2020 | BG56: GLWC | BH56: 83289.45455 | BI56: 36.36363636 | BJ56: 29.63636364 | BK56: 107.5073649 | BL56: 458092 | BM56: 200 | BN56: 163 | BO56: 591.2905071 | BP56: Tanzanian shilling | BQ56: TZS | BR56: 774.732546
A57: Tanzania | B57: Urban | D57: Living Wage Reference Value | E57: 5 | G57: 1.69 | H57: 2017 | I57: 77 | J57: 3.2 | K57: 97.28 | L57: 79 | M57: 221787 | N57: 286.2755684 | O57: 287.8106509 | P57: 233.7278107 | Q57: 656174.5562 | R57: 846.9691374 | S57: 486.4 | T57: 395 | U57: 1108935 | V57: 1431.377842 | W57: 2012 | X57: World Bank, 2016 | Y57: =1.44*588.8 -> 847.872 | Z57: =Y57*30.4 -> 25775.3088 | AA57: 11.2 | AB57: 9.2 | AC57: 33.26994449 | AD57: 76258.31006 | AE57: 33 | AF57: 27 | AG57: 98.43178843 | AH57: 128876.544 | AI57: 56 | AJ57: 46 | AK57: 166.3497224 | AL57: 2013, Agriculture | AM57: Wage Indicator | AN57: 100000 | AO57: 44 | AP57: 36 | AQ57: 129.0768027 | AR57: 169000 | AS57: 74.36 | AT57: 60.84 | AU57: 218.1397966 | AV57: 2020 | AW57: GLWC | AX57: 425608 | AY57: 186 | AZ57: 151 | BA57: 549.3611985 | BB57: 719277.52 | BC57: 314.34 | BD57: 255.19 | BE57: 928.4204255 | BF57: 2020 | BG57: Calculated from GLWC | BH57: =(361338*G57)/E57 -> 122132.244 | BI57: 53.4 | BJ57: 43.4 | BK57: 157.6443956 | BL57: =361338*G57 -> 610661.22 | BM57: 267 | BN57: 217 | BO57: 788.2219782 | BP57: Tanzanian shilling | BQ57: TZS | BR57: 774.732546
A58: Tunisia | B58: Rural | D58: Living Wage Reference Value | E58: 4.5 | F58: 2 | G58: 1.46 | H58: 2015 | I58: 3 | J58: 3.2 | K58: 97.28 | L58: 79 | M58: 261 | N58: 320.2410058 | O58: 299.8356164 | P58: 243.4931507 | Q58: 804.4520548 | R58: 987.0441959 | S58: 437.76 | T58: 355.5 | U58: 1174.5 | V58: 1441.084526 | W58: 2010 | X58: World Bank, 2016 | Y58: =3.97*0.7 -> 2.779 | Z58: =Y58*30.4 -> 84.4816 | AA58: 31.11111111 | AB58: 25.33333333 | AC58: 103.656983 | AD58: 260.3884932 | AE58: 97 | AF58: 79 | AG58: 319.4907009 | AH58: 380.1672 | AI58: 140 | AJ58: 114 | AK58: 466.4564233 | AL58: 2021, non-agriculture, 48h/w | AM58: Wage Indicator | AN58: 429 | AO58: 159 | AP58: 130 | AQ58: 526.3731474 | AR58: 626.34 | AS58: 233 | AT58: 189 | AU58: 768.5047952 | AV58: 2020 | AW58: GLWC | AX58: 695 | AY58: 258 | AZ58: 210 | BA58: 852.7490384 | BB58: 1014.7 | BC58: 376.68 | BD58: 306.6 | BE58: 1245.013596 | BF58: 2020 | BG58: Calculated from GLWC | BH58: =(663*G58)/E58 -> 215.1066667 | BI58: 80 | BJ58: 65.11111111 | BK58: 263.9309398 | BL58: =663*G58 -> 967.98 | BM58: 360 | BN58: 293 | BO58: 1187.689229 | BP58: Tunisian dinar | BQ58: TND | BR58: 0.81501118
A59: Turkey | B59: Rural | D59: Living Income Reference Value | E59: 4 | F59: 2 | G59: 1.58 | H59: 2019 | I59: 10 | J59: 5.5 | K59: 167.2 | L59: 136 | M59: 1228 | N59: 581.5908499 | O59: 423.2911392 | P59: 344.3037975 | Q59: 3108.860759 | R59: 1472.381898 | S59: 668.8 | T59: 544 | U59: 4912 | V59: 2326.3634 | W59: 2011 | X59: World Bank, 2016 | Y59: =2.82*1.1 -> 3.102 | Z59: =Y59*30.4 -> 94.3008 | AA59: 12.75 | AB59: 10.5 | AC59: 44.66163063 | AD59: 238.7362025 | AE59: 32 | AF59: 26 | AG59: 113.0674193 | AH59: 377.2032 | AI59: 51 | AJ59: 42 | AK59: 178.6465225 | AL59: 2021 | AM59: Wage Indicator | AN59: 3578 | AO59: 487 | AP59: 397 | AQ59: 1694.570082 | AR59: 5653.24 | AS59: 769 | AT59: 626 | AU59: 2677.42073 | BF59: 2020 | BG59: GLWC | BH59: =BL59/E59 -> 887.75 | BI59: 120.75 | BJ59: 98.25 | BK59: 420.4456653 | BL59: 3551 | BM59: 483 | BN59: 393 | BO59: 1681.782661 | BP59: Turkish lira | BQ59: TRY | BR59: 2.11145
A60: Uganda | B60: Rural | C60: Lake Victoria Basin | D60: Living Wage Benchmark | E60: 5 | F60: 2 | G60: 1.78 | H60: 2016 | I60: 41 | J60: 1.9 | K60: 57.76 | L60: 47 | M60: 209859 | N60: 169.7959785 | O60: 162.247191 | P60: 132.0224719 | Q60: 589491.573 | R60: 476.9549957 | S60: 288.8 | T60: 235 | U60: 1049295 | V60: 848.9798924 | X60: Uganda Bureau of Statistics | Y60: =Z60/30.4 -> 1006.940789 | Z60: 30611 | AA60: 8.4 | AB60: 6.8 | AC60: 24.76722322 | AD60: 85985.95506 | AE60: 24 | AF60: 20 | AG60: 69.57085173 | AH60: 153055 | AI60: 42 | AJ60: 34 | AK60: 123.8361161 | AL60: 2017 | AM60: Wage Indicator | AN60: 130000 | AO60: 36 | AP60: 29 | AQ60: 105.1824187 | AR60: 231400 | AS60: =AO60*G60 -> 64.08 | AT60: =AP60*G60 -> 51.62 | AU60: 187.2247052 | AV60: 2019 | AW60: GLWC | AX60: 652311 | AY60: 180 | AZ60: 147 | BA60: =AX60/BR60 -> 527.7819132 | BB60: =AX60*G60 -> 1161113.58 | BC60: =AY60*G60 -> 320.4 | BD60: =AZ60*G60 -> 261.66 | BE60: =BB60/BR60 -> 939.4518054 | BF60: 2019 | BG60: Calculated from GLWC | BH60: =BL60/E60 -> 197859.6 | BI60: 54.6 | BJ60: 44.4 | BK60: 160.0873176 | BL60: 989298 | BM60: 273 | BN60: 222 | BO60: 800.4365879 | BP60: Ugandan shilling | BQ60: UGX | BR60: 1235.948
A61: Vietnam | B61: Rural | C61: Economic Zone 4 | D61: Living Wage Benchmark | E61: 4 | F61: 2 | G61: 1.87 | H61: 2018 | I61: 7 | J61: 3.2 | K61: 97.28 | L61: 79 | M61: 2243610 | N61: 281.5966231 | O61: 208.0855615 | P61: 168.9839572 | Q61: 4799165.775 | R61: 602.345718 | S61: 389.12 | T61: 316 | U61: 8974440 | V61: 1126.386493 | W61: 2016/ 20 | X61: ILO, rural | Y61: =Z61/30.4 -> 23026.31579 | Z61: 700000 | AA61: 30.25 | AB61: 24.75 | AC61: 87.85735319 | AD61: 1497326.203 | AE61: 65 | AF61: 53 | AG61: 187.9301673 | AH61: 2800000 | AI61: 121 | AJ61: 99 | AK61: 351.4294128 | AL61: 2021, region 4 | AM61: Wage Indicator | AN61: 3070000 | AO61: 133 | AP61: 108 | AQ61: 385.317249 | AR61: 5740900 | AS61: =AO61*G61 -> 248.71 | AT61: =AP61*G61 -> 201.96 | AU61: 720.5432557 | AV61: 2020 | AW61: GLWC | AX61: 4618167 | AY61: 200 | AZ61: 163 | BA61: =AX61/BR61 -> 579.6284703 | BB61: =AX61*G61 -> 8635972.29 | BC61: =AY61*G61 -> 374 | BD61: =AZ61*G61 -> 304.81 | BE61: =BB61/BR61 -> 1083.90524 | BF61: 2020 | BG61: Calculated from GLWC | BH61: =BL61/E61 -> 1932298.5 | BI61: 83.5 | BJ61: 68 | BK61: 242.5237597 | BL61: 7729194 | BM61: 334 | BN61: 272 | BO61: 970.0950388 | BP61: Vietnamese dong | BQ61: VND | BR61: 7967.4606
A62: Vietnam | B62: Urban | C62: Ho Chi Minh City | D62: Living Wage Benchmark | E62: 4 | F62: 2 | G62: 1.78 | H62: 2018 | I62: 7 | J62: 3.2 | K62: 97.28 | L62: 79 | M62: 2243610 | N62: 281.5966231 | O62: 218.6067416 | P62: 177.5280899 | Q62: 5041820.225 | R62: 632.8014003 | S62: 389.12 | T62: 316 | U62: 8974440 | V62: 1126.386493 | W62: 2016/ 20 | X62: ILO, urban | Y62: =Z62/30.4 -> 29605.26316 | Z62: 900000 | AA62: 39 | AB62: 31.75 | AC62: 112.9594541 | AD62: 2022471.91 | AE62: 87 | AF62: 71 | AG62: 253.8414699 | AH62: 3600000 | AI62: 156 | AJ62: 127 | AK62: 451.8378164 | AL62: 2021, region 1 | AM62: Wage Indicator | AN62: 4420000 | AO62: 191 | AP62: 156 | AQ62: 554.7564302 | AR62: 7867600 | AS62: =AO62*G62 -> 339.98 | AT62: =AP62*G62 -> 277.68 | AU62: 987.4664457 | AV62: 2020 | AW62: GLWC | AX62: 7446294 | AY62: 322 | AZ62: 262 | BA62: =AX62/BR62 -> 934.5881171 | BB62: =AX62*G62 -> 13254403.32 | BC62: =AY62*G62 -> 573.16 | BD62: =AZ62*G62 -> 466.36 | BE62: =BB62/BR62 -> 1663.566848 | BF62: 2020 | BG62: Calculated from GLWC | BH62: =BL62/E62 -> 2965673 | BI62: 128.25 | BJ62: 104.5 | BK62: 372.2231146 | BL62: 11862692 | BM62: 513 | BN62: 418 | BO62: 1488.892458 | BP62: Vietnamese dong | BQ62: VND | BR62: 7967.4606
